Department Family,Entity,Date,Expense Type,Expense Area,Supplier,Transaction Number,AP Amount,
Department of Health,St. Helens&Knowsley Hospitals NHS Trust,31/12/2022,Anaesthetics Accessories,THEATRES ANAESTHETICS WH,ROTAMAP LTD,44854935,"4,806.36",
Department of Health,St. Helens&Knowsley Hospitals NHS Trust,31/12/2022,Anaesthetics Accessories,THEATRES ANAESTHETICS WH,ROTAMAP LTD,44854935,"16,822.26",
Department of Health,St. Helens&Knowsley Hospitals NHS Trust,31/12/2022,Anaesthetics Accessories,THEATRES ANAESTHETICS WH,ROTAMAP LTD,44854935,"4,325.72",
Department of Health,St. Helens&Knowsley Hospitals NHS Trust,31/12/2022,"Books, Journals & Subscr",LIBRARY SERVICES,ELSEVIER LTD,44855023,"36,487.00",
Department of Health,St. Helens&Knowsley Hospitals NHS Trust,31/12/2022,Computer Maintenance,STHK SWITCHBOARD,INSIGHT DIRECT (UK) LTD,44838345,"36,512.50",
Department of Health,St. Helens&Knowsley Hospitals NHS Trust,31/12/2022,Computer Maintenance,STHK SWITCHBOARD,INSIGHT DIRECT (UK) LTD,44838345,"7,302.50",
Department of Health,St. Helens&Knowsley Hospitals NHS Trust,31/12/2022,Continence Products,COMMUNITY CONTINENCE SERVICE,ESSITY UK LTD,44989210,"44,443.28",
Department of Health,St. Helens&Knowsley Hospitals NHS Trust,31/12/2022,Contr Photocopier Rental,MMDA PROGRAMME COSTS - SHARED SERVICES,CANON UK LTD,43525850,"55,548.24",
Department of Health,St. Helens&Knowsley Hospitals NHS Trust,31/12/2022,Contr Photocopier Rental,MMDA PROGRAMME COSTS - SHARED SERVICES,CANON UK LTD,44294443,"51,045.88",
Department of Health,St. Helens&Knowsley Hospitals NHS Trust,31/12/2022,Drugs,DRUGS/M+S UNALLOCATED WH,ALLIANCE HEALTHCARE DISTRIBUTION LTD,44956124,"51,784.82",
Department of Health,St. Helens&Knowsley Hospitals NHS Trust,31/12/2022,Drugs,DRUGS/M+S UNALLOCATED WH,PHOENIX HEALTHCARE DISTRIBUTION LTD,44956125,-21.47,
Department of Health,St. Helens&Knowsley Hospitals NHS Trust,31/12/2022,Drugs,DRUGS/M+S UNALLOCATED WH,PHOENIX HEALTHCARE DISTRIBUTION LTD,44956125,-107.34,
Department of Health,St. Helens&Knowsley Hospitals NHS Trust,31/12/2022,Drugs,DRUGS/M+S UNALLOCATED WH,ALLOGA UK LTD,44956126,-87.47,
Department of Health,St. Helens&Knowsley Hospitals NHS Trust,31/12/2022,Drugs,DRUGS/M+S UNALLOCATED WH,ALLOGA UK LTD,44956126,-437.36,
Department of Health,St. Helens&Knowsley Hospitals NHS Trust,31/12/2022,Service Charge,CIPHA - STP SHARED CARE RECORD,SYSTEM C HEALTHCARE LTD,44779604,"2,490,813.00",
Department of Health,St. Helens&Knowsley Hospitals NHS Trust,31/12/2022,Service Charge,CIPHA - STP SHARED CARE RECORD,SYSTEM C HEALTHCARE LTD,44779606,"558,290.00",
Department of Health,St. Helens&Knowsley Hospitals NHS Trust,31/12/2022,Service Charge,MMDA PROGRAMME COSTS - SHARED SERVICES,SYSTEM C HEALTHCARE LTD,44779612,"376,901.33",
Department of Health,St. Helens&Knowsley Hospitals NHS Trust,31/12/2022,External Consultancy Fees,RETROSPECT. VAT RECOVERY,LIAISON FINANCIAL SERVICES LTD,44955017,"28,927.28",
Department of Health,St. Helens&Knowsley Hospitals NHS Trust,31/12/2022,IGComp3PSoft - Additions,Balance Sheet,SOFTCAT PLC,44757238,"81,600.00",
Department of Health,St. Helens&Knowsley Hospitals NHS Trust,31/12/2022,IGComp3PSoft - Additions,Balance Sheet,SOFTCAT PLC,44757238,"16,320.00",
Department of Health,St. Helens&Knowsley Hospitals NHS Trust,31/12/2022,Independent Sector,RESERVES,FAIRFIELD INDEPENDENT HOSPITAL,44802201,"30,000.00",
Department of Health,St. Helens&Knowsley Hospitals NHS Trust,31/12/2022,Independent Sector,OCCUPATIONAL HEALTH NURS,COHORT SOFTWARE LTD,44930389,"31,555.81",
Department of Health,St. Helens&Knowsley Hospitals NHS Trust,31/12/2022,Independent Sector,OCCUPATIONAL HEALTH NURS,COHORT SOFTWARE LTD,44930389,"6,311.15",
Department of Health,St. Helens&Knowsley Hospitals NHS Trust,31/12/2022,Interpreting services,A + E NURSING WHISTON,DA LANGUAGES LTD,44802426,"1,141.56",
Department of Health,St. Helens&Knowsley Hospitals NHS Trust,31/12/2022,Interpreting services,ACUTE MEDICAL UNIT,DA LANGUAGES LTD,44802426,181.14,
Department of Health,St. Helens&Knowsley Hospitals NHS Trust,31/12/2022,Interpreting services,AUDIOLOGY,DA LANGUAGES LTD,44802426,201.12,
Department of Health,St. Helens&Knowsley Hospitals NHS Trust,31/12/2022,Interpreting services,B + P DRESSINGS CLINIC,DA LANGUAGES LTD,44802426,545.22,
Department of Health,St. Helens&Knowsley Hospitals NHS Trust,31/12/2022,Interpreting services,B + P MEDICAL STAFF,DA LANGUAGES LTD,44802426,298.50,
Department of Health,St. Helens&Knowsley Hospitals NHS Trust,31/12/2022,Interpreting services,B + P PROSTHETIC SERVICE,DA LANGUAGES LTD,44802426,216.12,
Department of Health,St. Helens&Knowsley Hospitals NHS Trust,31/12/2022,Interpreting services,CANCER CORE STAFF AND NON-PAY,DA LANGUAGES LTD,44802426,878.04,
Department of Health,St. Helens&Knowsley Hospitals NHS Trust,31/12/2022,Interpreting services,CARDIO-RESPIRATORY (ECG),DA LANGUAGES LTD,44802426,633.30,
Department of Health,St. Helens&Knowsley Hospitals NHS Trust,31/12/2022,Interpreting services,CLINICAL PSYCHOLOGY,DA LANGUAGES LTD,44802426,16.20,
Department of Health,St. Helens&Knowsley Hospitals NHS Trust,31/12/2022,Interpreting services,COMMUNITY MIDWIFERY,DA LANGUAGES LTD,44802426,444.36,
Department of Health,St. Helens&Knowsley Hospitals NHS Trust,31/12/2022,Interpreting services,DELIVERY SUITE,DA LANGUAGES LTD,44802426,280.26,
Department of Health,St. Helens&Knowsley Hospitals NHS Trust,31/12/2022,Interpreting services,DERMATOLOGY,DA LANGUAGES LTD,44802426,652.56,
Department of Health,St. Helens&Knowsley Hospitals NHS Trust,31/12/2022,Interpreting services,DIABETES NURSING,DA LANGUAGES LTD,44802426,536.52,
Department of Health,St. Helens&Knowsley Hospitals NHS Trust,31/12/2022,Interpreting services,DUFFY SUITE INTERMEDIATE CARE UNIT,DA LANGUAGES LTD,44802426,37.80,
Department of Health,St. Helens&Knowsley Hospitals NHS Trust,31/12/2022,Interpreting services,ENT MEDICAL STAFF,DA LANGUAGES LTD,44802426,"1,075.98",
Department of Health,St. Helens&Knowsley Hospitals NHS Trust,31/12/2022,Interpreting services,GASTROLOGY SNR MEDICAL,DA LANGUAGES LTD,44802426,"1,137.66",
Department of Health,St. Helens&Knowsley Hospitals NHS Trust,31/12/2022,Interpreting services,GEN MED ENDOSCOPY H2,DA LANGUAGES LTD,44802426,"1,110.78",
Department of Health,St. Helens&Knowsley Hospitals NHS Trust,31/12/2022,Interpreting services,GENERAL SURGERY MEDICAL,DA LANGUAGES LTD,44802426,"1,942.86",
Department of Health,St. Helens&Knowsley Hospitals NHS Trust,31/12/2022,Interpreting services,GYNAE OUTPATIEN ST HELENS,DA LANGUAGES LTD,44802426,593.82,
Department of Health,St. Helens&Knowsley Hospitals NHS Trust,31/12/2022,Interpreting services,GYNAECOLOGY OPD WHISTON,DA LANGUAGES LTD,44802426,"2,223.60",
Department of Health,St. Helens&Knowsley Hospitals NHS Trust,31/12/2022,Interpreting services,HAEMATOLOGY MEDICAL,DA LANGUAGES LTD,44802426,114.60,
Department of Health,St. Helens&Knowsley Hospitals NHS Trust,31/12/2022,Interpreting services,LASER CLINICS,DA LANGUAGES LTD,44802426,150.78,
Department of Health,St. Helens&Knowsley Hospitals NHS Trust,31/12/2022,Interpreting services,NEUROPHYSIOLOGY (EEG),DA LANGUAGES LTD,44802426,63.72,
Department of Health,St. Helens&Knowsley Hospitals NHS Trust,31/12/2022,Interpreting services,NEWTON HOSPITAL OP,DA LANGUAGES LTD,44802426,93.54,
Department of Health,St. Helens&Knowsley Hospitals NHS Trust,31/12/2022,Interpreting services,OBSTETRICS WARD 2E,DA LANGUAGES LTD,44802426,36.72,
Department of Health,St. Helens&Knowsley Hospitals NHS Trust,31/12/2022,Interpreting services,OPHTHALMOLOGY MEDICAL,DA LANGUAGES LTD,44802426,"1,888.38",
Department of Health,St. Helens&Knowsley Hospitals NHS Trust,31/12/2022,Interpreting services,ORTHODONTICS & ORAL & FACIAL SURGERY,DA LANGUAGES LTD,44802426,282.60,
Department of Health,St. Helens&Knowsley Hospitals NHS Trust,31/12/2022,Interpreting services,ORTHOPAEDIC MEDICAL STAFF,DA LANGUAGES LTD,44802426,"1,138.44",
Department of Health,St. Helens&Knowsley Hospitals NHS Trust,31/12/2022,Interpreting services,ORTHOPTICS DEPARTMENT,DA LANGUAGES LTD,44802426,272.04,
Department of Health,St. Helens&Knowsley Hospitals NHS Trust,31/12/2022,Interpreting services,OUTPATIENTS ST HELENS,DA LANGUAGES LTD,44802426,341.52,
Department of Health,St. Helens&Knowsley Hospitals NHS Trust,31/12/2022,Interpreting services,OUTPATIENTS WHISTON,DA LANGUAGES LTD,44802426,151.92,
Department of Health,St. Helens&Knowsley Hospitals NHS Trust,31/12/2022,Interpreting services,PAEDIATRIC MEDICAL STAFF,DA LANGUAGES LTD,44802426,609.00,
Department of Health,St. Helens&Knowsley Hospitals NHS Trust,31/12/2022,Interpreting services,RADIOGRAPHY WHISTON,DA LANGUAGES LTD,44802426,"2,354.88",
Department of Health,St. Helens&Knowsley Hospitals NHS Trust,31/12/2022,Interpreting services,RESPIRATORY SNR MEDICAL,DA LANGUAGES LTD,44802426,330.30,
Department of Health,St. Helens&Knowsley Hospitals NHS Trust,31/12/2022,Interpreting services,RHEUMATOLOGY NURSING OUTPATIENTS,DA LANGUAGES LTD,44802426,82.02,
Department of Health,St. Helens&Knowsley Hospitals NHS Trust,31/12/2022,Interpreting services,RHEUMATOLOGY SNR MEDICAL,DA LANGUAGES LTD,44802426,528.30,
Department of Health,St. Helens&Knowsley Hospitals NHS Trust,31/12/2022,Interpreting services,SANDERSON SUITE GENERAL SURGERY,DA LANGUAGES LTD,44802426,769.14,
Department of Health,St. Helens&Knowsley Hospitals NHS Trust,31/12/2022,Interpreting services,SEXUAL HEALTH,DA LANGUAGES LTD,44802426,413.64,
Department of Health,St. Helens&Knowsley Hospitals NHS Trust,31/12/2022,Interpreting services,SOUTH TREATMENT ROOMS,DA LANGUAGES LTD,44802426,83.82,
Department of Health,St. Helens&Knowsley Hospitals NHS Trust,31/12/2022,Interpreting services,ST HELENS UTC,DA LANGUAGES LTD,44802426,248.40,
Department of Health,St. Helens&Knowsley Hospitals NHS Trust,31/12/2022,Interpreting services,THEATRES MEDICAL STAFF,DA LANGUAGES LTD,44802426,350.10,
Department of Health,St. Helens&Knowsley Hospitals NHS Trust,31/12/2022,Interpreting services,THERAPY MANAGEMENT & ADMIN.,DA LANGUAGES LTD,44802426,"1,927.92",
Department of Health,St. Helens&Knowsley Hospitals NHS Trust,31/12/2022,Interpreting services,UROLOGY MEDICAL STAFF,DA LANGUAGES LTD,44802426,"3,070.86",
Department of Health,St. Helens&Knowsley Hospitals NHS Trust,31/12/2022,Interpreting services,VASCULAR SURGERY MEDICAL STAFF,DA LANGUAGES LTD,44802426,143.40,
Department of Health,St. Helens&Knowsley Hospitals NHS Trust,31/12/2022,Interpreting services,WARD 3A PLASTICS,DA LANGUAGES LTD,44802426,241.92,
Department of Health,St. Helens&Knowsley Hospitals NHS Trust,31/12/2022,Interpreting services,WARD 3ALPHA ORTHOPAEDICS,DA LANGUAGES LTD,44802426,406.80,
Department of Health,St. Helens&Knowsley Hospitals NHS Trust,31/12/2022,Interpreting services,WARD 3B ORTHOPAEDICS,DA LANGUAGES LTD,44802426,317.88,
Department of Health,St. Helens&Knowsley Hospitals NHS Trust,31/12/2022,Interpreting services,WARD 3E GYNAECOLOGY,DA LANGUAGES LTD,44802426,591.00,
Department of Health,St. Helens&Knowsley Hospitals NHS Trust,31/12/2022,Interpreting services,WARD 3F PAEDIATRICS,DA LANGUAGES LTD,44802426,16.20,
Department of Health,St. Helens&Knowsley Hospitals NHS Trust,31/12/2022,Interpreting services,WARD 4A GENERAL SURGERY,DA LANGUAGES LTD,44802426,764.88,
Department of Health,St. Helens&Knowsley Hospitals NHS Trust,31/12/2022,Interpreting services,WARD 4B GENERAL SURGERY,DA LANGUAGES LTD,44802426,"1,379.34",
Department of Health,St. Helens&Knowsley Hospitals NHS Trust,31/12/2022,Interpreting services,WARD 4F PAEDIATRICS,DA LANGUAGES LTD,44802426,51.84,
Department of Health,St. Helens&Knowsley Hospitals NHS Trust,31/12/2022,Interpreting services,WARD 5D ASU,DA LANGUAGES LTD,44802426,77.76,
Department of Health,St. Helens&Knowsley Hospitals NHS Trust,31/12/2022,Interpreting services,WOMENS OPD,DA LANGUAGES LTD,44802426,"1,454.70",
Department of Health,St. Helens&Knowsley Hospitals NHS Trust,31/12/2022,Interpreting services,A + E NURSING WHISTON,DA LANGUAGES LTD,45057615,806.76,
Department of Health,St. Helens&Knowsley Hospitals NHS Trust,31/12/2022,Interpreting services,AUDIOLOGY,DA LANGUAGES LTD,45057615,105.42,
Department of Health,St. Helens&Knowsley Hospitals NHS Trust,31/12/2022,Interpreting services,B + P DRESSINGS CLINIC,DA LANGUAGES LTD,45057615,371.58,
Department of Health,St. Helens&Knowsley Hospitals NHS Trust,31/12/2022,Interpreting services,B + P HOLBROOK UNIT,DA LANGUAGES LTD,45057615,176.46,
Department of Health,St. Helens&Knowsley Hospitals NHS Trust,31/12/2022,Interpreting services,B + P MEDICAL STAFF,DA LANGUAGES LTD,45057615,"1,119.88",
Department of Health,St. Helens&Knowsley Hospitals NHS Trust,31/12/2022,Interpreting services,CANCER CORE STAFF AND NON-PAY,DA LANGUAGES LTD,45057615,499.26,
Department of Health,St. Helens&Knowsley Hospitals NHS Trust,31/12/2022,Interpreting services,CARDIO-RESPIRATORY (ECG),DA LANGUAGES LTD,45057615,30.24,
Department of Health,St. Helens&Knowsley Hospitals NHS Trust,31/12/2022,Interpreting services,CARDIOLOGY NURSING,DA LANGUAGES LTD,45057615,88.14,
Department of Health,St. Helens&Knowsley Hospitals NHS Trust,31/12/2022,Interpreting services,CARE OF ELDERLY MED STAFF,DA LANGUAGES LTD,45057615,16.20,
Department of Health,St. Helens&Knowsley Hospitals NHS Trust,31/12/2022,Interpreting services,CLINICAL PSYCHOLOGY,DA LANGUAGES LTD,45057615,77.57,
Department of Health,St. Helens&Knowsley Hospitals NHS Trust,31/12/2022,Interpreting services,COMMUNITY CONTINENCE SERVICE,DA LANGUAGES LTD,45057615,116.16,
Department of Health,St. Helens&Knowsley Hospitals NHS Trust,31/12/2022,Interpreting services,COMMUNITY MIDWIFERY,DA LANGUAGES LTD,45057615,170.52,
Department of Health,St. Helens&Knowsley Hospitals NHS Trust,31/12/2022,Interpreting services,DELIVERY SUITE,DA LANGUAGES LTD,45057615,138.24,
Department of Health,St. Helens&Knowsley Hospitals NHS Trust,31/12/2022,Interpreting services,DERMATOLOGY,DA LANGUAGES LTD,45057615,"1,568.58",
Department of Health,St. Helens&Knowsley Hospitals NHS Trust,31/12/2022,Interpreting services,DIABETES NURSING,DA LANGUAGES LTD,45057615,"1,010.40",
Department of Health,St. Helens&Knowsley Hospitals NHS Trust,31/12/2022,Interpreting services,ENT MEDICAL STAFF,DA LANGUAGES LTD,45057615,"1,342.92",
Department of Health,St. Helens&Knowsley Hospitals NHS Trust,31/12/2022,Interpreting services,FETO MAT ASSESSMENT UNIT,DA LANGUAGES LTD,45057615,23.76,
Department of Health,St. Helens&Knowsley Hospitals NHS Trust,31/12/2022,Interpreting services,GASTROLOGY SNR MEDICAL,DA LANGUAGES LTD,45057615,"1,136.64",
Department of Health,St. Helens&Knowsley Hospitals NHS Trust,31/12/2022,Interpreting services,GEN MED ENDOSCOPY H2,DA LANGUAGES LTD,45057615,"1,293.72",
Department of Health,St. Helens&Knowsley Hospitals NHS Trust,31/12/2022,Interpreting services,GENERAL SURGERY MEDICAL,DA LANGUAGES LTD,45057615,"1,426.92",
Department of Health,St. Helens&Knowsley Hospitals NHS Trust,31/12/2022,Interpreting services,GYNAE OUTPATIEN ST HELENS,DA LANGUAGES LTD,45057615,"1,310.10",
Department of Health,St. Helens&Knowsley Hospitals NHS Trust,31/12/2022,Interpreting services,GYNAECOLOGY OPD WHISTON,DA LANGUAGES LTD,45057615,"2,863.20",
Department of Health,St. Helens&Knowsley Hospitals NHS Trust,31/12/2022,Interpreting services,HAEMATOLOGY MEDICAL,DA LANGUAGES LTD,45057615,154.98,
Department of Health,St. Helens&Knowsley Hospitals NHS Trust,31/12/2022,Interpreting services,LASER CLINICS,DA LANGUAGES LTD,45057615,64.26,
Department of Health,St. Helens&Knowsley Hospitals NHS Trust,31/12/2022,Interpreting services,NEONATAL UNIT,DA LANGUAGES LTD,45057615,17.28,
Department of Health,St. Helens&Knowsley Hospitals NHS Trust,31/12/2022,Interpreting services,NEWTON HOSPITAL OP,DA LANGUAGES LTD,45057615,35.64,
Department of Health,St. Helens&Knowsley Hospitals NHS Trust,31/12/2022,Interpreting services,OBSTETRICS WARD 2E,DA LANGUAGES LTD,45057615,303.06,
Department of Health,St. Helens&Knowsley Hospitals NHS Trust,31/12/2022,Interpreting services,OPHTH RENNIE EYE CLINIC,DA LANGUAGES LTD,45057615,73.44,
Department of Health,St. Helens&Knowsley Hospitals NHS Trust,31/12/2022,Interpreting services,OPHTHALMOLOGY MEDICAL,DA LANGUAGES LTD,45057615,"1,656.60",
Department of Health,St. Helens&Knowsley Hospitals NHS Trust,31/12/2022,Interpreting services,ORTHODONTICS & ORAL & FACIAL SURGERY,DA LANGUAGES LTD,45057615,634.38,
Department of Health,St. Helens&Knowsley Hospitals NHS Trust,31/12/2022,Interpreting services,ORTHOPAEDIC MEDICAL STAFF,DA LANGUAGES LTD,45057615,706.08,
Department of Health,St. Helens&Knowsley Hospitals NHS Trust,31/12/2022,Interpreting services,ORTHOPTICS DEPARTMENT,DA LANGUAGES LTD,45057615,355.98,
Department of Health,St. Helens&Knowsley Hospitals NHS Trust,31/12/2022,Interpreting services,OUTPATIENTS ST HELENS,DA LANGUAGES LTD,45057615,69.12,
Department of Health,St. Helens&Knowsley Hospitals NHS Trust,31/12/2022,Interpreting services,OUTPATIENTS WHISTON,DA LANGUAGES LTD,45057615,387.30,
Department of Health,St. Helens&Knowsley Hospitals NHS Trust,31/12/2022,Interpreting services,PAEDIATRIC MEDICAL STAFF,DA LANGUAGES LTD,45057615,383.52,
Department of Health,St. Helens&Knowsley Hospitals NHS Trust,31/12/2022,Interpreting services,PRE OP SCG,DA LANGUAGES LTD,45057615,"1,372.44",
Department of Health,St. Helens&Knowsley Hospitals NHS Trust,31/12/2022,Interpreting services,RADIOGRAPHY WHISTON,DA LANGUAGES LTD,45057615,"4,402.31",
Department of Health,St. Helens&Knowsley Hospitals NHS Trust,31/12/2022,Interpreting services,RESPIRATORY SNR MEDICAL,DA LANGUAGES LTD,45057615,112.92,
Department of Health,St. Helens&Knowsley Hospitals NHS Trust,31/12/2022,Interpreting services,RHEUMATOLOGY SNR MEDICAL,DA LANGUAGES LTD,45057615,577.80,
Department of Health,St. Helens&Knowsley Hospitals NHS Trust,31/12/2022,Interpreting services,SANDERSON SUITE GENERAL SURGERY,DA LANGUAGES LTD,45057615,"1,819.14",
Department of Health,St. Helens&Knowsley Hospitals NHS Trust,31/12/2022,Interpreting services,SEDDON SUITE TRAUMA REHAB UNIT,DA LANGUAGES LTD,45057615,245.40,
Department of Health,St. Helens&Knowsley Hospitals NHS Trust,31/12/2022,Interpreting services,SEXUAL HEALTH,DA LANGUAGES LTD,45057615,307.20,
Department of Health,St. Helens&Knowsley Hospitals NHS Trust,31/12/2022,Interpreting services,ST HELENS UTC,DA LANGUAGES LTD,45057615,216.00,
Department of Health,St. Helens&Knowsley Hospitals NHS Trust,31/12/2022,Interpreting services,THEATRES MEDICAL STAFF,DA LANGUAGES LTD,45057615,16.20,
Department of Health,St. Helens&Knowsley Hospitals NHS Trust,31/12/2022,Interpreting services,THERAPY - SEDDON REHAB UNIT,DA LANGUAGES LTD,45057615,66.42,
Department of Health,St. Helens&Knowsley Hospitals NHS Trust,31/12/2022,Interpreting services,THERAPY MANAGEMENT & ADMIN.,DA LANGUAGES LTD,45057615,"1,722.84",
Department of Health,St. Helens&Knowsley Hospitals NHS Trust,31/12/2022,Interpreting services,UROLOGY MEDICAL STAFF,DA LANGUAGES LTD,45057615,"1,593.90",
Department of Health,St. Helens&Knowsley Hospitals NHS Trust,31/12/2022,Interpreting services,VASCULAR SURGERY MEDICAL STAFF,DA LANGUAGES LTD,45057615,223.20,
Department of Health,St. Helens&Knowsley Hospitals NHS Trust,31/12/2022,Interpreting services,WARD 1B ACUTE MEDICAL UNIT,DA LANGUAGES LTD,45057615,110.28,
Department of Health,St. Helens&Knowsley Hospitals NHS Trust,31/12/2022,Interpreting services,WARD 1C ACUTE MEDICAL UNIT,DA LANGUAGES LTD,45057615,28.08,
Department of Health,St. Helens&Knowsley Hospitals NHS Trust,31/12/2022,Interpreting services,WARD 3A PLASTICS,DA LANGUAGES LTD,45057615,"2,509.68",
Department of Health,St. Helens&Knowsley Hospitals NHS Trust,31/12/2022,Interpreting services,WARD 3E GYNAECOLOGY,DA LANGUAGES LTD,45057615,225.72,
Department of Health,St. Helens&Knowsley Hospitals NHS Trust,31/12/2022,Interpreting services,WARD 3F PAEDIATRICS,DA LANGUAGES LTD,45057615,38.88,
Department of Health,St. Helens&Knowsley Hospitals NHS Trust,31/12/2022,Interpreting services,WARD 4C GENERAL SURGERY,DA LANGUAGES LTD,45057615,123.06,
Department of Health,St. Helens&Knowsley Hospitals NHS Trust,31/12/2022,Interpreting services,WARD 4D BURNS,DA LANGUAGES LTD,45057615,499.08,
Department of Health,St. Helens&Knowsley Hospitals NHS Trust,31/12/2022,Interpreting services,WARD 5C ACUTE STROKE UNIT (HASU),DA LANGUAGES LTD,45057615,50.76,
Department of Health,St. Helens&Knowsley Hospitals NHS Trust,31/12/2022,Interpreting services,WOMENS OPD,DA LANGUAGES LTD,45057615,"3,358.08",
Department of Health,St. Helens&Knowsley Hospitals NHS Trust,31/12/2022,Lab Equip Maint Contracts,CHEMICAL PATHOLOGY DEPT,SIEMENS HEALTHCARE DIAGNOSTICS LTD,44956152,"171,808.60",
Department of Health,St. Helens&Knowsley Hospitals NHS Trust,31/12/2022,Lab Equip Maint Contracts,CHEMICAL PATHOLOGY DEPT,SIEMENS HEALTHCARE DIAGNOSTICS LTD,44956152,"34,361.72",
Department of Health,St. Helens&Knowsley Hospitals NHS Trust,31/12/2022,Laboratory Chemicals,MICROBIOLOGY DEPT,CHRYSTAL CONSULTING LTD,44199652,"128,843.69",
Department of Health,St. Helens&Knowsley Hospitals NHS Trust,31/12/2022,Laboratory Chemicals,HISTOPATHOLOGY/MORTUARY,ROCHE DIAGNOSTICS LTD,45002133,"66,250.35",
Department of Health,St. Helens&Knowsley Hospitals NHS Trust,31/12/2022,Legal / Prof Fees,FACILITIES MANAGEMENT,NEW HOSPITALS (ST HELENS & KNOWSLEY) LTD,44829771,"48,000.00",
Department of Health,St. Helens&Knowsley Hospitals NHS Trust,31/12/2022,Legal / Prof Fees,LEGAL SERVICES,HILL DICKINSON LLP,44907206,"29,186.60",
Department of Health,St. Helens&Knowsley Hospitals NHS Trust,31/12/2022,Med & Surg Equip Disp,GEN MED ENDOSCOPY H2,BOSTON SCIENTIFIC LTD,44212742,"21,653.84",
Department of Health,St. Helens&Knowsley Hospitals NHS Trust,31/12/2022,Med & Surg Equip General,COMMUNITY SERVICES MANAGEMENT,BRIDGEWATER COMMUNITY HEALTHCARE NHS FOUNDATION TRUST,44996708,"63,321.22",
Department of Health,St. Helens&Knowsley Hospitals NHS Trust,31/12/2022,Med & Surg Equip General,COMMUNITY SERVICES MANAGEMENT,BRIDGEWATER COMMUNITY HEALTHCARE NHS FOUNDATION TRUST,44996711,"160,709.47",
Department of Health,St. Helens&Knowsley Hospitals NHS Trust,31/12/2022,Med & Surg Maint Contract,COLD DECONTAMINATION WHISTON,IM MED LTD,44814330,"42,408.50",
Department of Health,St. Helens&Knowsley Hospitals NHS Trust,31/12/2022,Med & Surg Maint Contract,COLD DECONTAMINATION WHISTON,IM MED LTD,44814340,"33,147.00",
Department of Health,St. Helens&Knowsley Hospitals NHS Trust,31/12/2022,Med & Surg Maint Contract,COLD DECONTAMINATION WHISTON,IM MED LTD,45027158,"30,590.38",
Department of Health,St. Helens&Knowsley Hospitals NHS Trust,31/12/2022,Med Equip Additions,Balance Sheet,BIOSPECTRUM LTD,44929992,775.00,
Department of Health,St. Helens&Knowsley Hospitals NHS Trust,31/12/2022,Med Equip Additions,Balance Sheet,BIOSPECTRUM LTD,44929992,350.00,
Department of Health,St. Helens&Knowsley Hospitals NHS Trust,31/12/2022,Med Equip Additions,Balance Sheet,BIOSPECTRUM LTD,44929992,"12,500.00",
Department of Health,St. Helens&Knowsley Hospitals NHS Trust,31/12/2022,Med Equip Additions,Balance Sheet,BIOSPECTRUM LTD,44929992,"3,500.00",
Department of Health,St. Helens&Knowsley Hospitals NHS Trust,31/12/2022,Med Equip Additions,Balance Sheet,BIOSPECTRUM LTD,44929992,"17,450.00",
Department of Health,St. Helens&Knowsley Hospitals NHS Trust,31/12/2022,Med Equip Additions,Balance Sheet,BIOSPECTRUM LTD,44929992,"6,933.00",
Department of Health,St. Helens&Knowsley Hospitals NHS Trust,31/12/2022,Miscellaneous Expenditure,PFI ENABLING WORKS,NEW HOSPITALS (ST HELENS & KNOWSLEY) LTD,44829835,"48,000.00",
Department of Health,St. Helens&Knowsley Hospitals NHS Trust,31/12/2022,Miscellaneous Expenditure,PFI ENABLING WORKS,NEW HOSPITALS (ST HELENS & KNOWSLEY) LTD,44909744,"1,016,840.74",
Department of Health,St. Helens&Knowsley Hospitals NHS Trust,31/12/2022,Miscellaneous Expenditure,PFI ENABLING WORKS,NEW HOSPITALS (ST HELENS & KNOWSLEY) LTD,44909744,"203,365.29",
Department of Health,St. Helens&Knowsley Hospitals NHS Trust,31/12/2022,Miscellaneous Expenditure,BEVAN COURT FM,NEW HOSPITALS (ST HELENS & KNOWSLEY) LTD,44928187,"93,545.72",
Department of Health,St. Helens&Knowsley Hospitals NHS Trust,31/12/2022,Miscellaneous Expenditure,HSDU WHISTON,SYNERGY HEALTH (UK) LTD,44989339,"192,868.03",
Department of Health,St. Helens&Knowsley Hospitals NHS Trust,31/12/2022,Mobile Phones,A + E MEDICAL STAFF WH,VODAFONE LTD,44989115,12.00,
Department of Health,St. Helens&Knowsley Hospitals NHS Trust,31/12/2022,Mobile Phones,A + E MEDICAL STAFF WH,VODAFONE LTD,44989115,60.00,
Department of Health,St. Helens&Knowsley Hospitals NHS Trust,31/12/2022,Mobile Phones,A + E NURSING WHISTON,VODAFONE LTD,44989115,6.17,
Department of Health,St. Helens&Knowsley Hospitals NHS Trust,31/12/2022,Mobile Phones,A + E NURSING WHISTON,VODAFONE LTD,44989115,30.87,
Department of Health,St. Helens&Knowsley Hospitals NHS Trust,31/12/2022,Mobile Phones,ACUTE KIDNEY INJURY SERVICE,VODAFONE LTD,44989115,27.53,
Department of Health,St. Helens&Knowsley Hospitals NHS Trust,31/12/2022,Mobile Phones,ACUTE KIDNEY INJURY SERVICE,VODAFONE LTD,44989115,137.67,
Department of Health,St. Helens&Knowsley Hospitals NHS Trust,31/12/2022,Mobile Phones,ADMINISTRATION SERVICE CO-ORDINATOR,VODAFONE LTD,44989115,6.02,
Department of Health,St. Helens&Knowsley Hospitals NHS Trust,31/12/2022,Mobile Phones,ADMINISTRATION SERVICE CO-ORDINATOR,VODAFONE LTD,44989115,30.12,
Department of Health,St. Helens&Knowsley Hospitals NHS Trust,31/12/2022,Mobile Phones,ADMINISTRATIVE SUPPORT,VODAFONE LTD,44989115,3.04,
Department of Health,St. Helens&Knowsley Hospitals NHS Trust,31/12/2022,Mobile Phones,ADMINISTRATIVE SUPPORT,VODAFONE LTD,44989115,15.20,
Department of Health,St. Helens&Knowsley Hospitals NHS Trust,31/12/2022,Mobile Phones,AMU NURSE SPECIALISTS,VODAFONE LTD,44989115,36.00,
Department of Health,St. Helens&Knowsley Hospitals NHS Trust,31/12/2022,Mobile Phones,AMU NURSE SPECIALISTS,VODAFONE LTD,44989115,180.00,
Department of Health,St. Helens&Knowsley Hospitals NHS Trust,31/12/2022,Mobile Phones,ANTI-COAGULATION NURSING TEAM,VODAFONE LTD,44989115,6.00,
Department of Health,St. Helens&Knowsley Hospitals NHS Trust,31/12/2022,Mobile Phones,ANTI-COAGULATION NURSING TEAM,VODAFONE LTD,44989115,30.00,
Department of Health,St. Helens&Knowsley Hospitals NHS Trust,31/12/2022,Mobile Phones,B + P MEDICAL PHOTOGRAPHY,VODAFONE LTD,44989115,12.00,
Department of Health,St. Helens&Knowsley Hospitals NHS Trust,31/12/2022,Mobile Phones,B + P MEDICAL PHOTOGRAPHY,VODAFONE LTD,44989115,60.00,
Department of Health,St. Helens&Knowsley Hospitals NHS Trust,31/12/2022,Mobile Phones,B + P MEDICAL STAFF,VODAFONE LTD,44989115,30.60,
Department of Health,St. Helens&Knowsley Hospitals NHS Trust,31/12/2022,Mobile Phones,B + P MEDICAL STAFF,VODAFONE LTD,44989115,153.00,
Department of Health,St. Helens&Knowsley Hospitals NHS Trust,31/12/2022,Mobile Phones,BD INCOME-NON PARTNERS,VODAFONE LTD,44989115,6.00,
Department of Health,St. Helens&Knowsley Hospitals NHS Trust,31/12/2022,Mobile Phones,BD INCOME-NON PARTNERS,VODAFONE LTD,44989115,30.00,
Department of Health,St. Helens&Knowsley Hospitals NHS Trust,31/12/2022,Mobile Phones,BED MANAGEMENT,VODAFONE LTD,44989115,8.07,
Department of Health,St. Helens&Knowsley Hospitals NHS Trust,31/12/2022,Mobile Phones,BED MANAGEMENT,VODAFONE LTD,44989115,40.36,
Department of Health,St. Helens&Knowsley Hospitals NHS Trust,31/12/2022,Mobile Phones,BEVAN COURT 1,VODAFONE LTD,44989115,19.50,
Department of Health,St. Helens&Knowsley Hospitals NHS Trust,31/12/2022,Mobile Phones,BEVAN COURT 1,VODAFONE LTD,44989115,97.50,
Department of Health,St. Helens&Knowsley Hospitals NHS Trust,31/12/2022,Mobile Phones,BEVAN COURT 2,VODAFONE LTD,44989115,12.00,
Department of Health,St. Helens&Knowsley Hospitals NHS Trust,31/12/2022,Mobile Phones,BEVAN COURT 2,VODAFONE LTD,44989115,60.00,
Department of Health,St. Helens&Knowsley Hospitals NHS Trust,31/12/2022,Mobile Phones,BREAST SURGERY,VODAFONE LTD,44989115,1.50,
Department of Health,St. Helens&Knowsley Hospitals NHS Trust,31/12/2022,Mobile Phones,BREAST SURGERY,VODAFONE LTD,44989115,7.50,
Department of Health,St. Helens&Knowsley Hospitals NHS Trust,31/12/2022,Mobile Phones,BUSINESS RELATIONSHIPS,VODAFONE LTD,44989115,6.00,
Department of Health,St. Helens&Knowsley Hospitals NHS Trust,31/12/2022,Mobile Phones,BUSINESS RELATIONSHIPS,VODAFONE LTD,44989115,30.00,
Department of Health,St. Helens&Knowsley Hospitals NHS Trust,31/12/2022,Mobile Phones,C.O.P.D SERVICE (KPCT),VODAFONE LTD,44989115,1.50,
Department of Health,St. Helens&Knowsley Hospitals NHS Trust,31/12/2022,Mobile Phones,C.O.P.D SERVICE (KPCT),VODAFONE LTD,44989115,7.50,
Department of Health,St. Helens&Knowsley Hospitals NHS Trust,31/12/2022,Mobile Phones,C.O.P.D SERVICE (STHPCT),VODAFONE LTD,44989115,135.90,
Department of Health,St. Helens&Knowsley Hospitals NHS Trust,31/12/2022,Mobile Phones,C.O.P.D SERVICE (STHPCT),VODAFONE LTD,44989115,679.50,
Department of Health,St. Helens&Knowsley Hospitals NHS Trust,31/12/2022,Mobile Phones,CANCER CORE STAFF AND NON-PAY,VODAFONE LTD,44989115,12.00,
Department of Health,St. Helens&Knowsley Hospitals NHS Trust,31/12/2022,Mobile Phones,CANCER CORE STAFF AND NON-PAY,VODAFONE LTD,44989115,60.00,
Department of Health,St. Helens&Knowsley Hospitals NHS Trust,31/12/2022,Mobile Phones,CANCER NURSE SPEC MCG,VODAFONE LTD,44989115,12.06,
Department of Health,St. Helens&Knowsley Hospitals NHS Trust,31/12/2022,Mobile Phones,CANCER NURSE SPEC MCG,VODAFONE LTD,44989115,60.30,
Department of Health,St. Helens&Knowsley Hospitals NHS Trust,31/12/2022,Mobile Phones,CANCER NURSE SPEC SCG,VODAFONE LTD,44989115,15.00,
Department of Health,St. Helens&Knowsley Hospitals NHS Trust,31/12/2022,Mobile Phones,CANCER NURSE SPEC SCG,VODAFONE LTD,44989115,75.00,
Department of Health,St. Helens&Knowsley Hospitals NHS Trust,31/12/2022,Mobile Phones,CANCER SERVICES,VODAFONE LTD,44989115,6.00,
Department of Health,St. Helens&Knowsley Hospitals NHS Trust,31/12/2022,Mobile Phones,CANCER SERVICES,VODAFONE LTD,44989115,30.00,
Department of Health,St. Helens&Knowsley Hospitals NHS Trust,31/12/2022,Mobile Phones,CANCER SERVICES - ADMIN,VODAFONE LTD,44989115,8.40,
Department of Health,St. Helens&Knowsley Hospitals NHS Trust,31/12/2022,Mobile Phones,CANCER SERVICES - ADMIN,VODAFONE LTD,44989115,42.00,
Department of Health,St. Helens&Knowsley Hospitals NHS Trust,31/12/2022,Mobile Phones,CANCER SVS CO-ORDINATION,VODAFONE LTD,44989115,46.26,
Department of Health,St. Helens&Knowsley Hospitals NHS Trust,31/12/2022,Mobile Phones,CANCER SVS CO-ORDINATION,VODAFONE LTD,44989115,231.30,
Department of Health,St. Helens&Knowsley Hospitals NHS Trust,31/12/2022,Mobile Phones,CARDIO-RESPIRATORY (ECG),VODAFONE LTD,44989115,41.39,
Department of Health,St. Helens&Knowsley Hospitals NHS Trust,31/12/2022,Mobile Phones,CARDIO-RESPIRATORY (ECG),VODAFONE LTD,44989115,206.95,
Department of Health,St. Helens&Knowsley Hospitals NHS Trust,31/12/2022,Mobile Phones,CARDIOLOGY NURSING,VODAFONE LTD,44989115,23.07,
Department of Health,St. Helens&Knowsley Hospitals NHS Trust,31/12/2022,Mobile Phones,CARDIOLOGY NURSING,VODAFONE LTD,44989115,115.33,
Department of Health,St. Helens&Knowsley Hospitals NHS Trust,31/12/2022,Mobile Phones,CARDIOLOGY SNR MEDICAL,VODAFONE LTD,44989115,19.50,
Department of Health,St. Helens&Knowsley Hospitals NHS Trust,31/12/2022,Mobile Phones,CARDIOLOGY SNR MEDICAL,VODAFONE LTD,44989115,97.50,
Department of Health,St. Helens&Knowsley Hospitals NHS Trust,31/12/2022,Mobile Phones,CARE OF ELDERLY MED STAFF,VODAFONE LTD,44989115,122.51,
Department of Health,St. Helens&Knowsley Hospitals NHS Trust,31/12/2022,Mobile Phones,CARE OF ELDERLY MED STAFF,VODAFONE LTD,44989115,612.54,
Department of Health,St. Helens&Knowsley Hospitals NHS Trust,31/12/2022,Mobile Phones,CHAIRMAN'S OFFICE,VODAFONE LTD,44989115,42.10,
Department of Health,St. Helens&Knowsley Hospitals NHS Trust,31/12/2022,Mobile Phones,CHAIRMAN'S OFFICE,VODAFONE LTD,44989115,210.52,
Department of Health,St. Helens&Knowsley Hospitals NHS Trust,31/12/2022,Mobile Phones,CHIEF EXECUTIVE'S OFFICE,VODAFONE LTD,44989115,127.89,
Department of Health,St. Helens&Knowsley Hospitals NHS Trust,31/12/2022,Mobile Phones,CHIEF EXECUTIVE'S OFFICE,VODAFONE LTD,44989115,639.43,
Department of Health,St. Helens&Knowsley Hospitals NHS Trust,31/12/2022,Mobile Phones,CHILDRENS NURSING,VODAFONE LTD,44989115,158.27,
Department of Health,St. Helens&Knowsley Hospitals NHS Trust,31/12/2022,Mobile Phones,CHILDRENS NURSING,VODAFONE LTD,44989115,791.35,
Department of Health,St. Helens&Knowsley Hospitals NHS Trust,31/12/2022,Mobile Phones,CLINICAL AUDIT,VODAFONE LTD,44989115,6.00,
Department of Health,St. Helens&Knowsley Hospitals NHS Trust,31/12/2022,Mobile Phones,CLINICAL AUDIT,VODAFONE LTD,44989115,30.00,
Department of Health,St. Helens&Knowsley Hospitals NHS Trust,31/12/2022,Mobile Phones,CLINICAL GOVERNANCE TEAM,VODAFONE LTD,44989115,10.50,
Department of Health,St. Helens&Knowsley Hospitals NHS Trust,31/12/2022,Mobile Phones,CLINICAL GOVERNANCE TEAM,VODAFONE LTD,44989115,52.50,
Department of Health,St. Helens&Knowsley Hospitals NHS Trust,31/12/2022,Mobile Phones,CLINICAL PSYCHOLOGY,VODAFONE LTD,44989115,28.50,
Department of Health,St. Helens&Knowsley Hospitals NHS Trust,31/12/2022,Mobile Phones,CLINICAL PSYCHOLOGY,VODAFONE LTD,44989115,142.50,
Department of Health,St. Helens&Knowsley Hospitals NHS Trust,31/12/2022,Mobile Phones,CLINICAL SUPPORT DIV MGMT,VODAFONE LTD,44989115,17.00,
Department of Health,St. Helens&Knowsley Hospitals NHS Trust,31/12/2022,Mobile Phones,CLINICAL SUPPORT DIV MGMT,VODAFONE LTD,44989115,85.00,
Department of Health,St. Helens&Knowsley Hospitals NHS Trust,31/12/2022,Mobile Phones,COE NURSE SPECIALISTS,VODAFONE LTD,44989115,19.50,
Department of Health,St. Helens&Knowsley Hospitals NHS Trust,31/12/2022,Mobile Phones,COE NURSE SPECIALISTS,VODAFONE LTD,44989115,97.50,
Department of Health,St. Helens&Knowsley Hospitals NHS Trust,31/12/2022,Mobile Phones,COLD DECONTAMINATION,VODAFONE LTD,44989115,6.00,
Department of Health,St. Helens&Knowsley Hospitals NHS Trust,31/12/2022,Mobile Phones,COLD DECONTAMINATION,VODAFONE LTD,44989115,30.00,
Department of Health,St. Helens&Knowsley Hospitals NHS Trust,31/12/2022,Mobile Phones,COLD DECONTAMINATION WHISTON,VODAFONE LTD,44989115,7.50,
Department of Health,St. Helens&Knowsley Hospitals NHS Trust,31/12/2022,Mobile Phones,COLD DECONTAMINATION WHISTON,VODAFONE LTD,44989115,37.50,
Department of Health,St. Helens&Knowsley Hospitals NHS Trust,31/12/2022,Mobile Phones,COMMUNICATIONS,VODAFONE LTD,44989115,66.68,
Department of Health,St. Helens&Knowsley Hospitals NHS Trust,31/12/2022,Mobile Phones,COMMUNICATIONS,VODAFONE LTD,44989115,333.40,
Department of Health,St. Helens&Knowsley Hospitals NHS Trust,31/12/2022,Mobile Phones,COMMUNITY CARDIAC TEAM,VODAFONE LTD,44989115,59.40,
Department of Health,St. Helens&Knowsley Hospitals NHS Trust,31/12/2022,Mobile Phones,COMMUNITY CARDIAC TEAM,VODAFONE LTD,44989115,297.00,
Department of Health,St. Helens&Knowsley Hospitals NHS Trust,31/12/2022,Mobile Phones,COMMUNITY CONTINENCE SERVICE,VODAFONE LTD,44989115,24.00,
Department of Health,St. Helens&Knowsley Hospitals NHS Trust,31/12/2022,Mobile Phones,COMMUNITY CONTINENCE SERVICE,VODAFONE LTD,44989115,120.00,
Department of Health,St. Helens&Knowsley Hospitals NHS Trust,31/12/2022,Mobile Phones,COMMUNITY FRAILTY SERVICE,VODAFONE LTD,44989115,176.23,
Department of Health,St. Helens&Knowsley Hospitals NHS Trust,31/12/2022,Mobile Phones,COMMUNITY FRAILTY SERVICE,VODAFONE LTD,44989115,881.17,
Department of Health,St. Helens&Knowsley Hospitals NHS Trust,31/12/2022,Mobile Phones,COMMUNITY MATRON,VODAFONE LTD,44989115,63.87,
Department of Health,St. Helens&Knowsley Hospitals NHS Trust,31/12/2022,Mobile Phones,COMMUNITY MATRON,VODAFONE LTD,44989115,319.37,
Department of Health,St. Helens&Knowsley Hospitals NHS Trust,31/12/2022,Mobile Phones,COMMUNITY MIDWIFERY,VODAFONE LTD,44989115,779.15,
Department of Health,St. Helens&Knowsley Hospitals NHS Trust,31/12/2022,Mobile Phones,COMMUNITY MIDWIFERY,VODAFONE LTD,44989115,"3,895.77",
Department of Health,St. Helens&Knowsley Hospitals NHS Trust,31/12/2022,Mobile Phones,COMMUNITY NURSING MANAGEMENT,VODAFONE LTD,44989115,28.52,
Department of Health,St. Helens&Knowsley Hospitals NHS Trust,31/12/2022,Mobile Phones,COMMUNITY NURSING MANAGEMENT,VODAFONE LTD,44989115,142.58,
Department of Health,St. Helens&Knowsley Hospitals NHS Trust,31/12/2022,Mobile Phones,COMMUNITY PAEDIATRICS,VODAFONE LTD,44989115,138.21,
Department of Health,St. Helens&Knowsley Hospitals NHS Trust,31/12/2022,Mobile Phones,COMMUNITY PAEDIATRICS,VODAFONE LTD,44989115,691.03,
Department of Health,St. Helens&Knowsley Hospitals NHS Trust,31/12/2022,Mobile Phones,COMMUNITY SERVICES MANAGEMENT,VODAFONE LTD,44989115,104.06,
Department of Health,St. Helens&Knowsley Hospitals NHS Trust,31/12/2022,Mobile Phones,COMMUNITY SERVICES MANAGEMENT,VODAFONE LTD,44989115,520.30,
Department of Health,St. Helens&Knowsley Hospitals NHS Trust,31/12/2022,Mobile Phones,COVID,VODAFONE LTD,44989115,54.06,
Department of Health,St. Helens&Knowsley Hospitals NHS Trust,31/12/2022,Mobile Phones,COVID,VODAFONE LTD,44989115,270.30,
Department of Health,St. Helens&Knowsley Hospitals NHS Trust,31/12/2022,Mobile Phones,DELIVERY SUITE,VODAFONE LTD,44989115,1.50,
Department of Health,St. Helens&Knowsley Hospitals NHS Trust,31/12/2022,Mobile Phones,DELIVERY SUITE,VODAFONE LTD,44989115,7.50,
Department of Health,St. Helens&Knowsley Hospitals NHS Trust,31/12/2022,Mobile Phones,DIABETES NURSING,VODAFONE LTD,44989115,48.06,
Department of Health,St. Helens&Knowsley Hospitals NHS Trust,31/12/2022,Mobile Phones,DIABETES NURSING,VODAFONE LTD,44989115,240.30,
Department of Health,St. Helens&Knowsley Hospitals NHS Trust,31/12/2022,Mobile Phones,DIABETES SNR MEDICAL,VODAFONE LTD,44989115,12.00,
Department of Health,St. Helens&Knowsley Hospitals NHS Trust,31/12/2022,Mobile Phones,DIABETES SNR MEDICAL,VODAFONE LTD,44989115,60.00,
Department of Health,St. Helens&Knowsley Hospitals NHS Trust,31/12/2022,Mobile Phones,DIABETES STP,VODAFONE LTD,44989115,72.00,
Department of Health,St. Helens&Knowsley Hospitals NHS Trust,31/12/2022,Mobile Phones,DIABETES STP,VODAFONE LTD,44989115,360.00,
Department of Health,St. Helens&Knowsley Hospitals NHS Trust,31/12/2022,Mobile Phones,DIGITAL ASPIRATION PRGRME,VODAFONE LTD,44989115,6.00,
Department of Health,St. Helens&Knowsley Hospitals NHS Trust,31/12/2022,Mobile Phones,DIGITAL ASPIRATION PRGRME,VODAFONE LTD,44989115,30.00,
Department of Health,St. Helens&Knowsley Hospitals NHS Trust,31/12/2022,Mobile Phones,DN CENTRAL,VODAFONE LTD,44989115,107.44,
Department of Health,St. Helens&Knowsley Hospitals NHS Trust,31/12/2022,Mobile Phones,DN CENTRAL,VODAFONE LTD,44989115,537.18,
Department of Health,St. Helens&Knowsley Hospitals NHS Trust,31/12/2022,Mobile Phones,DN HAYDOCK AND NEWTON,VODAFONE LTD,44989115,172.83,
Department of Health,St. Helens&Knowsley Hospitals NHS Trust,31/12/2022,Mobile Phones,DN HAYDOCK AND NEWTON,VODAFONE LTD,44989115,864.16,
Department of Health,St. Helens&Knowsley Hospitals NHS Trust,31/12/2022,Mobile Phones,DN NORTH,VODAFONE LTD,44989115,148.95,
Department of Health,St. Helens&Knowsley Hospitals NHS Trust,31/12/2022,Mobile Phones,DN NORTH,VODAFONE LTD,44989115,744.75,
Department of Health,St. Helens&Knowsley Hospitals NHS Trust,31/12/2022,Mobile Phones,DN SOUTH,VODAFONE LTD,44989115,169.94,
Department of Health,St. Helens&Knowsley Hospitals NHS Trust,31/12/2022,Mobile Phones,DN SOUTH,VODAFONE LTD,44989115,849.68,
Department of Health,St. Helens&Knowsley Hospitals NHS Trust,31/12/2022,Mobile Phones,DN St Helens OOH,VODAFONE LTD,44989115,66.80,
Department of Health,St. Helens&Knowsley Hospitals NHS Trust,31/12/2022,Mobile Phones,DN St Helens OOH,VODAFONE LTD,44989115,334.02,
Department of Health,St. Helens&Knowsley Hospitals NHS Trust,31/12/2022,Mobile Phones,DUFFY SUITE INTERMEDIATE CARE UNIT,VODAFONE LTD,44989115,12.00,
Department of Health,St. Helens&Knowsley Hospitals NHS Trust,31/12/2022,Mobile Phones,DUFFY SUITE INTERMEDIATE CARE UNIT,VODAFONE LTD,44989115,60.00,
Department of Health,St. Helens&Knowsley Hospitals NHS Trust,31/12/2022,Mobile Phones,EMERGENCY PLANNING,VODAFONE LTD,44989115,42.31,
Department of Health,St. Helens&Knowsley Hospitals NHS Trust,31/12/2022,Mobile Phones,EMERGENCY PLANNING,VODAFONE LTD,44989115,211.55,
Department of Health,St. Helens&Knowsley Hospitals NHS Trust,31/12/2022,Mobile Phones,EPMA,VODAFONE LTD,44989115,18.00,
Department of Health,St. Helens&Knowsley Hospitals NHS Trust,31/12/2022,Mobile Phones,EPMA,VODAFONE LTD,44989115,90.00,
Department of Health,St. Helens&Knowsley Hospitals NHS Trust,31/12/2022,Mobile Phones,ESTATE SURVEY SECTION,VODAFONE LTD,44989115,6.00,
Department of Health,St. Helens&Knowsley Hospitals NHS Trust,31/12/2022,Mobile Phones,ESTATE SURVEY SECTION,VODAFONE LTD,44989115,30.00,
Department of Health,St. Helens&Knowsley Hospitals NHS Trust,31/12/2022,Mobile Phones,EXECUTIVE PAYROLL,VODAFONE LTD,44989115,63.85,
Department of Health,St. Helens&Knowsley Hospitals NHS Trust,31/12/2022,Mobile Phones,EXECUTIVE PAYROLL,VODAFONE LTD,44989115,319.24,
Department of Health,St. Helens&Knowsley Hospitals NHS Trust,31/12/2022,Mobile Phones,FACILITIES MANAGEMENT,VODAFONE LTD,44989115,59.51,
Department of Health,St. Helens&Knowsley Hospitals NHS Trust,31/12/2022,Mobile Phones,FACILITIES MANAGEMENT,VODAFONE LTD,44989115,297.56,
Department of Health,St. Helens&Knowsley Hospitals NHS Trust,31/12/2022,Mobile Phones,FINANCE DIRECTORATE HQ,VODAFONE LTD,44989115,17.68,
Department of Health,St. Helens&Knowsley Hospitals NHS Trust,31/12/2022,Mobile Phones,FINANCE DIRECTORATE HQ,VODAFONE LTD,44989115,88.39,
Department of Health,St. Helens&Knowsley Hospitals NHS Trust,31/12/2022,Mobile Phones,GASTRO UPPER GI FUND,VODAFONE LTD,44989115,6.00,
Department of Health,St. Helens&Knowsley Hospitals NHS Trust,31/12/2022,Mobile Phones,GASTRO UPPER GI FUND,VODAFONE LTD,44989115,30.00,
Department of Health,St. Helens&Knowsley Hospitals NHS Trust,31/12/2022,Mobile Phones,GASTROLOGY NURSING,VODAFONE LTD,44989115,63.00,
Department of Health,St. Helens&Knowsley Hospitals NHS Trust,31/12/2022,Mobile Phones,GASTROLOGY NURSING,VODAFONE LTD,44989115,315.00,
Department of Health,St. Helens&Knowsley Hospitals NHS Trust,31/12/2022,Mobile Phones,GASTROLOGY SNR MEDICAL,VODAFONE LTD,44989115,43.32,
Department of Health,St. Helens&Knowsley Hospitals NHS Trust,31/12/2022,Mobile Phones,GASTROLOGY SNR MEDICAL,VODAFONE LTD,44989115,216.60,
Department of Health,St. Helens&Knowsley Hospitals NHS Trust,31/12/2022,Mobile Phones,GEN MED ENDOSCOPY H2,VODAFONE LTD,44989115,6.00,
Department of Health,St. Helens&Knowsley Hospitals NHS Trust,31/12/2022,Mobile Phones,GEN MED ENDOSCOPY H2,VODAFONE LTD,44989115,30.00,
Department of Health,St. Helens&Knowsley Hospitals NHS Trust,31/12/2022,Mobile Phones,GEN MEDICINE MEDICAL STF,VODAFONE LTD,44989115,25.50,
Department of Health,St. Helens&Knowsley Hospitals NHS Trust,31/12/2022,Mobile Phones,GEN MEDICINE MEDICAL STF,VODAFONE LTD,44989115,127.50,
Department of Health,St. Helens&Knowsley Hospitals NHS Trust,31/12/2022,Mobile Phones,GENERAL SURGERY MEDICAL,VODAFONE LTD,44989115,54.79,
Department of Health,St. Helens&Knowsley Hospitals NHS Trust,31/12/2022,Mobile Phones,GENERAL SURGERY MEDICAL,VODAFONE LTD,44989115,273.95,
Department of Health,St. Helens&Knowsley Hospitals NHS Trust,31/12/2022,Mobile Phones,GYNAE OUTPATIEN ST HELENS,VODAFONE LTD,44989115,6.00,
Department of Health,St. Helens&Knowsley Hospitals NHS Trust,31/12/2022,Mobile Phones,GYNAE OUTPATIEN ST HELENS,VODAFONE LTD,44989115,30.00,
Department of Health,St. Helens&Knowsley Hospitals NHS Trust,31/12/2022,Mobile Phones,HAEM + BLOOD TRANSFUSION,VODAFONE LTD,44989115,24.00,
Department of Health,St. Helens&Knowsley Hospitals NHS Trust,31/12/2022,Mobile Phones,HAEM + BLOOD TRANSFUSION,VODAFONE LTD,44989115,120.00,
Department of Health,St. Helens&Knowsley Hospitals NHS Trust,31/12/2022,Mobile Phones,HAEMATOLOGY MEDICAL,VODAFONE LTD,44989115,31.50,
Department of Health,St. Helens&Knowsley Hospitals NHS Trust,31/12/2022,Mobile Phones,HAEMATOLOGY MEDICAL,VODAFONE LTD,44989115,157.50,
Department of Health,St. Helens&Knowsley Hospitals NHS Trust,31/12/2022,Mobile Phones,HISTOPATHOLOGY/MORTUARY,VODAFONE LTD,44989115,6.00,
Department of Health,St. Helens&Knowsley Hospitals NHS Trust,31/12/2022,Mobile Phones,HISTOPATHOLOGY/MORTUARY,VODAFONE LTD,44989115,30.00,
Department of Health,St. Helens&Knowsley Hospitals NHS Trust,31/12/2022,Mobile Phones,HOSPITAL DISCHARGE TEAM,VODAFONE LTD,44989115,62.01,
Department of Health,St. Helens&Knowsley Hospitals NHS Trust,31/12/2022,Mobile Phones,HOSPITAL DISCHARGE TEAM,VODAFONE LTD,44989115,310.05,
Department of Health,St. Helens&Knowsley Hospitals NHS Trust,31/12/2022,Mobile Phones,HUMAN RESOURCES - CORE HR,VODAFONE LTD,44989115,52.00,
Department of Health,St. Helens&Knowsley Hospitals NHS Trust,31/12/2022,Mobile Phones,HUMAN RESOURCES - CORE HR,VODAFONE LTD,44989115,260.00,
Department of Health,St. Helens&Knowsley Hospitals NHS Trust,31/12/2022,Mobile Phones,HUMAN RESOURCES - RESOURCING,VODAFONE LTD,44989115,227.00,
Department of Health,St. Helens&Knowsley Hospitals NHS Trust,31/12/2022,Mobile Phones,HUMAN RESOURCES - RESOURCING,VODAFONE LTD,44989115,"1,135.00",
Department of Health,St. Helens&Knowsley Hospitals NHS Trust,31/12/2022,Mobile Phones,I T EXECUTIVE,VODAFONE LTD,44989115,13.00,
Department of Health,St. Helens&Knowsley Hospitals NHS Trust,31/12/2022,Mobile Phones,I T EXECUTIVE,VODAFONE LTD,44989115,65.00,
Department of Health,St. Helens&Knowsley Hospitals NHS Trust,31/12/2022,Mobile Phones,ICU MEDICAL STAFF WHISTON,VODAFONE LTD,44989115,39.05,
Department of Health,St. Helens&Knowsley Hospitals NHS Trust,31/12/2022,Mobile Phones,ICU MEDICAL STAFF WHISTON,VODAFONE LTD,44989115,195.24,
Department of Health,St. Helens&Knowsley Hospitals NHS Trust,31/12/2022,Mobile Phones,ICU NURSING WHISTON,VODAFONE LTD,44989115,1.50,
Department of Health,St. Helens&Knowsley Hospitals NHS Trust,31/12/2022,Mobile Phones,ICU NURSING WHISTON,VODAFONE LTD,44989115,7.50,
Department of Health,St. Helens&Knowsley Hospitals NHS Trust,31/12/2022,Mobile Phones,INFANT FEEDING TEAM,VODAFONE LTD,44989115,6.00,
Department of Health,St. Helens&Knowsley Hospitals NHS Trust,31/12/2022,Mobile Phones,INFANT FEEDING TEAM,VODAFONE LTD,44989115,30.00,
Department of Health,St. Helens&Knowsley Hospitals NHS Trust,31/12/2022,Mobile Phones,INFECTION CONTROL,VODAFONE LTD,44989115,10.50,
Department of Health,St. Helens&Knowsley Hospitals NHS Trust,31/12/2022,Mobile Phones,INFECTION CONTROL,VODAFONE LTD,44989115,52.50,
Department of Health,St. Helens&Knowsley Hospitals NHS Trust,31/12/2022,Mobile Phones,INFORMATION DEPARTMENT,VODAFONE LTD,44989115,36.00,
Department of Health,St. Helens&Knowsley Hospitals NHS Trust,31/12/2022,Mobile Phones,INFORMATION DEPARTMENT,VODAFONE LTD,44989115,180.00,
Department of Health,St. Helens&Knowsley Hospitals NHS Trust,31/12/2022,Mobile Phones,INTERNATIONAL RECRUITMENT,VODAFONE LTD,44989115,6.00,
Department of Health,St. Helens&Knowsley Hospitals NHS Trust,31/12/2022,Mobile Phones,INTERNATIONAL RECRUITMENT,VODAFONE LTD,44989115,30.00,
Department of Health,St. Helens&Knowsley Hospitals NHS Trust,31/12/2022,Mobile Phones,IRREG MAINT WHISTON,VODAFONE LTD,44989115,18.00,
Department of Health,St. Helens&Knowsley Hospitals NHS Trust,31/12/2022,Mobile Phones,IRREG MAINT WHISTON,VODAFONE LTD,44989115,90.00,
Department of Health,St. Helens&Knowsley Hospitals NHS Trust,31/12/2022,Mobile Phones,IV THERAPY ST HELENS,VODAFONE LTD,44989115,48.51,
Department of Health,St. Helens&Knowsley Hospitals NHS Trust,31/12/2022,Mobile Phones,IV THERAPY ST HELENS,VODAFONE LTD,44989115,242.55,
Department of Health,St. Helens&Knowsley Hospitals NHS Trust,31/12/2022,Mobile Phones,LE-HELPDESK,VODAFONE LTD,44989115,13.20,
Department of Health,St. Helens&Knowsley Hospitals NHS Trust,31/12/2022,Mobile Phones,LE-HELPDESK,VODAFONE LTD,44989115,66.00,
Department of Health,St. Helens&Knowsley Hospitals NHS Trust,31/12/2022,Mobile Phones,LE-MANAGEMENT TEAM,VODAFONE LTD,44989115,102.79,
Department of Health,St. Helens&Knowsley Hospitals NHS Trust,31/12/2022,Mobile Phones,LE-MANAGEMENT TEAM,VODAFONE LTD,44989115,513.93,
Department of Health,St. Helens&Knowsley Hospitals NHS Trust,31/12/2022,Mobile Phones,LE-ROTATE AND CTRCT AMNDMNTS,VODAFONE LTD,44989115,24.00,
Department of Health,St. Helens&Knowsley Hospitals NHS Trust,31/12/2022,Mobile Phones,LE-ROTATE AND CTRCT AMNDMNTS,VODAFONE LTD,44989115,120.00,
Department of Health,St. Helens&Knowsley Hospitals NHS Trust,31/12/2022,Mobile Phones,LEGAL SERVICES,VODAFONE LTD,44989115,6.00,
Department of Health,St. Helens&Knowsley Hospitals NHS Trust,31/12/2022,Mobile Phones,LEGAL SERVICES,VODAFONE LTD,44989115,30.00,
Department of Health,St. Helens&Knowsley Hospitals NHS Trust,31/12/2022,Mobile Phones,LIBRARY SERVICES,VODAFONE LTD,44989115,6.00,
Department of Health,St. Helens&Knowsley Hospitals NHS Trust,31/12/2022,Mobile Phones,LIBRARY SERVICES,VODAFONE LTD,44989115,30.00,
Department of Health,St. Helens&Knowsley Hospitals NHS Trust,31/12/2022,Mobile Phones,MARSHALLS CROSS MEDICAL CENTRE,VODAFONE LTD,44989115,6.00,
Department of Health,St. Helens&Knowsley Hospitals NHS Trust,31/12/2022,Mobile Phones,MARSHALLS CROSS MEDICAL CENTRE,VODAFONE LTD,44989115,30.00,
Department of Health,St. Helens&Knowsley Hospitals NHS Trust,31/12/2022,Mobile Phones,MCG DISCHARGE CO-ORDINATORS,VODAFONE LTD,44989115,86.21,
Department of Health,St. Helens&Knowsley Hospitals NHS Trust,31/12/2022,Mobile Phones,MCG DISCHARGE CO-ORDINATORS,VODAFONE LTD,44989115,431.07,
Department of Health,St. Helens&Knowsley Hospitals NHS Trust,31/12/2022,Mobile Phones,MED SECRETARIES BAND 3,VODAFONE LTD,44989115,7.50,
Department of Health,St. Helens&Knowsley Hospitals NHS Trust,31/12/2022,Mobile Phones,MED SECRETARIES BAND 3,VODAFONE LTD,44989115,37.50,
Department of Health,St. Helens&Knowsley Hospitals NHS Trust,31/12/2022,Mobile Phones,MEDICAL CARE GROUP MGT,VODAFONE LTD,44989115,315.24,
Department of Health,St. Helens&Knowsley Hospitals NHS Trust,31/12/2022,Mobile Phones,MEDICAL CARE GROUP MGT,VODAFONE LTD,44989115,"1,576.19",
Department of Health,St. Helens&Knowsley Hospitals NHS Trust,31/12/2022,Mobile Phones,MET TEAM,VODAFONE LTD,44989115,22.59,
Department of Health,St. Helens&Knowsley Hospitals NHS Trust,31/12/2022,Mobile Phones,MET TEAM,VODAFONE LTD,44989115,112.94,
Department of Health,St. Helens&Knowsley Hospitals NHS Trust,31/12/2022,Mobile Phones,MGMT SPECIALIST MIDWIVES,VODAFONE LTD,44989115,73.36,
Department of Health,St. Helens&Knowsley Hospitals NHS Trust,31/12/2022,Mobile Phones,MGMT SPECIALIST MIDWIVES,VODAFONE LTD,44989115,366.80,
Department of Health,St. Helens&Knowsley Hospitals NHS Trust,31/12/2022,Mobile Phones,MICROBIOLOGY DEPT,VODAFONE LTD,44989115,59.71,
Department of Health,St. Helens&Knowsley Hospitals NHS Trust,31/12/2022,Mobile Phones,MICROBIOLOGY DEPT,VODAFONE LTD,44989115,298.56,
Department of Health,St. Helens&Knowsley Hospitals NHS Trust,31/12/2022,Mobile Phones,MICROBIOLOGY MED STAFF,VODAFONE LTD,44989115,12.00,
Department of Health,St. Helens&Knowsley Hospitals NHS Trust,31/12/2022,Mobile Phones,MICROBIOLOGY MED STAFF,VODAFONE LTD,44989115,60.00,
Department of Health,St. Helens&Knowsley Hospitals NHS Trust,31/12/2022,Mobile Phones,MMDA PROGRAMME COSTS - SHARED SERVICES,VODAFONE LTD,44989115,"3,422.50",
Department of Health,St. Helens&Knowsley Hospitals NHS Trust,31/12/2022,Mobile Phones,MVP LEAD EMPLOYER SUPPORT,VODAFONE LTD,44989115,48.00,
Department of Health,St. Helens&Knowsley Hospitals NHS Trust,31/12/2022,Mobile Phones,MVP LEAD EMPLOYER SUPPORT,VODAFONE LTD,44989115,240.00,
Department of Health,St. Helens&Knowsley Hospitals NHS Trust,31/12/2022,Mobile Phones,NEWS2 Project,VODAFONE LTD,44989115,6.00,
Department of Health,St. Helens&Knowsley Hospitals NHS Trust,31/12/2022,Mobile Phones,NEWS2 Project,VODAFONE LTD,44989115,30.00,
Department of Health,St. Helens&Knowsley Hospitals NHS Trust,31/12/2022,Mobile Phones,NEWTON HOSPITAL OP,VODAFONE LTD,44989115,9.00,
Department of Health,St. Helens&Knowsley Hospitals NHS Trust,31/12/2022,Mobile Phones,NEWTON HOSPITAL OP,VODAFONE LTD,44989115,45.00,
Department of Health,St. Helens&Knowsley Hospitals NHS Trust,31/12/2022,Mobile Phones,NEWTON INTERMEDIATE CARE SERVICE,VODAFONE LTD,44989115,95.78,
Department of Health,St. Helens&Knowsley Hospitals NHS Trust,31/12/2022,Mobile Phones,NEWTON INTERMEDIATE CARE SERVICE,VODAFONE LTD,44989115,478.91,
Department of Health,St. Helens&Knowsley Hospitals NHS Trust,31/12/2022,Mobile Phones,NORTH TREATMENT ROOMS,VODAFONE LTD,44989115,6.00,
Department of Health,St. Helens&Knowsley Hospitals NHS Trust,31/12/2022,Mobile Phones,NORTH TREATMENT ROOMS,VODAFONE LTD,44989115,30.00,
Department of Health,St. Helens&Knowsley Hospitals NHS Trust,31/12/2022,Mobile Phones,NURSING ADMINISTRATION,VODAFONE LTD,44989115,120.08,
Department of Health,St. Helens&Knowsley Hospitals NHS Trust,31/12/2022,Mobile Phones,NURSING ADMINISTRATION,VODAFONE LTD,44989115,600.40,
Department of Health,St. Helens&Knowsley Hospitals NHS Trust,31/12/2022,Mobile Phones,NURSING DIRECTOR ADMIN STAFF,VODAFONE LTD,44989115,6.00,
Department of Health,St. Helens&Knowsley Hospitals NHS Trust,31/12/2022,Mobile Phones,NURSING DIRECTOR ADMIN STAFF,VODAFONE LTD,44989115,30.00,
Department of Health,St. Helens&Knowsley Hospitals NHS Trust,31/12/2022,Mobile Phones,OBS + GYNAE MEDICAL STAFF,VODAFONE LTD,44989115,12.00,
Department of Health,St. Helens&Knowsley Hospitals NHS Trust,31/12/2022,Mobile Phones,OBS + GYNAE MEDICAL STAFF,VODAFONE LTD,44989115,60.00,
Department of Health,St. Helens&Knowsley Hospitals NHS Trust,31/12/2022,Mobile Phones,OCCUPATIONAL HEALTH MED,VODAFONE LTD,44989115,22.64,
Department of Health,St. Helens&Knowsley Hospitals NHS Trust,31/12/2022,Mobile Phones,OCCUPATIONAL HEALTH MED,VODAFONE LTD,44989115,113.20,
Department of Health,St. Helens&Knowsley Hospitals NHS Trust,31/12/2022,Mobile Phones,OCCUPATIONAL HEALTH NURS,VODAFONE LTD,44989115,18.00,
Department of Health,St. Helens&Knowsley Hospitals NHS Trust,31/12/2022,Mobile Phones,OCCUPATIONAL HEALTH NURS,VODAFONE LTD,44989115,90.00,
Department of Health,St. Helens&Knowsley Hospitals NHS Trust,31/12/2022,Mobile Phones,OPHTH RENNIE EYE CLINIC,VODAFONE LTD,44989115,6.00,
Department of Health,St. Helens&Knowsley Hospitals NHS Trust,31/12/2022,Mobile Phones,OPHTH RENNIE EYE CLINIC,VODAFONE LTD,44989115,30.00,
Department of Health,St. Helens&Knowsley Hospitals NHS Trust,31/12/2022,Mobile Phones,ORGANISATIONAL L And D,VODAFONE LTD,44989115,1.50,
Department of Health,St. Helens&Knowsley Hospitals NHS Trust,31/12/2022,Mobile Phones,ORGANISATIONAL L And D,VODAFONE LTD,44989115,7.50,
Department of Health,St. Helens&Knowsley Hospitals NHS Trust,31/12/2022,Mobile Phones,ORTHOPAEDIC MEDICAL STAFF,VODAFONE LTD,44989115,12.00,
Department of Health,St. Helens&Knowsley Hospitals NHS Trust,31/12/2022,Mobile Phones,ORTHOPAEDIC MEDICAL STAFF,VODAFONE LTD,44989115,60.00,
Department of Health,St. Helens&Knowsley Hospitals NHS Trust,31/12/2022,Mobile Phones,ORTHOPTICS DEPARTMENT,VODAFONE LTD,44989115,12.00,
Department of Health,St. Helens&Knowsley Hospitals NHS Trust,31/12/2022,Mobile Phones,ORTHOPTICS DEPARTMENT,VODAFONE LTD,44989115,60.00,
Department of Health,St. Helens&Knowsley Hospitals NHS Trust,31/12/2022,Mobile Phones,OUTPATIENTS ST HELENS,VODAFONE LTD,44989115,6.00,
Department of Health,St. Helens&Knowsley Hospitals NHS Trust,31/12/2022,Mobile Phones,OUTPATIENTS ST HELENS,VODAFONE LTD,44989115,30.00,
Department of Health,St. Helens&Knowsley Hospitals NHS Trust,31/12/2022,Mobile Phones,PAED SPECIALIST NURSES,VODAFONE LTD,44989115,23.58,
Department of Health,St. Helens&Knowsley Hospitals NHS Trust,31/12/2022,Mobile Phones,PAED SPECIALIST NURSES,VODAFONE LTD,44989115,117.88,
Department of Health,St. Helens&Knowsley Hospitals NHS Trust,31/12/2022,Mobile Phones,PAEDIATRIC CONTINENCE,VODAFONE LTD,44989115,12.00,
Department of Health,St. Helens&Knowsley Hospitals NHS Trust,31/12/2022,Mobile Phones,PAEDIATRIC CONTINENCE,VODAFONE LTD,44989115,60.00,
Department of Health,St. Helens&Knowsley Hospitals NHS Trust,31/12/2022,Mobile Phones,PAEDIATRIC MEDICAL STAFF,VODAFONE LTD,44989115,1.50,
Department of Health,St. Helens&Knowsley Hospitals NHS Trust,31/12/2022,Mobile Phones,PAEDIATRIC MEDICAL STAFF,VODAFONE LTD,44989115,7.50,
Department of Health,St. Helens&Knowsley Hospitals NHS Trust,31/12/2022,Mobile Phones,PAEDIATRICS WARD CLERKS,VODAFONE LTD,44989115,1.50,
Department of Health,St. Helens&Knowsley Hospitals NHS Trust,31/12/2022,Mobile Phones,PAEDIATRICS WARD CLERKS,VODAFONE LTD,44989115,7.50,
Department of Health,St. Helens&Knowsley Hospitals NHS Trust,31/12/2022,Mobile Phones,PALLIATIVE CARE WHISTON,VODAFONE LTD,44989115,24.27,
Department of Health,St. Helens&Knowsley Hospitals NHS Trust,31/12/2022,Mobile Phones,PALLIATIVE CARE WHISTON,VODAFONE LTD,44989115,121.33,
Department of Health,St. Helens&Knowsley Hospitals NHS Trust,31/12/2022,Mobile Phones,PATHOLOGY GENERAL,VODAFONE LTD,44989115,111.00,
Department of Health,St. Helens&Knowsley Hospitals NHS Trust,31/12/2022,Mobile Phones,PATHOLOGY GENERAL,VODAFONE LTD,44989115,555.00,
Department of Health,St. Helens&Knowsley Hospitals NHS Trust,31/12/2022,Mobile Phones,PATIENT ACCESS MGMT,VODAFONE LTD,44989115,18.00,
Department of Health,St. Helens&Knowsley Hospitals NHS Trust,31/12/2022,Mobile Phones,PATIENT ACCESS MGMT,VODAFONE LTD,44989115,90.00,
Department of Health,St. Helens&Knowsley Hospitals NHS Trust,31/12/2022,Mobile Phones,PAYING PATIENTS,VODAFONE LTD,44989115,24.00,
Department of Health,St. Helens&Knowsley Hospitals NHS Trust,31/12/2022,Mobile Phones,PAYING PATIENTS,VODAFONE LTD,44989115,120.00,
Department of Health,St. Helens&Knowsley Hospitals NHS Trust,31/12/2022,Mobile Phones,PAYROLL SERVICES,VODAFONE LTD,44989115,12.00,
Department of Health,St. Helens&Knowsley Hospitals NHS Trust,31/12/2022,Mobile Phones,PAYROLL SERVICES,VODAFONE LTD,44989115,60.00,
Department of Health,St. Helens&Knowsley Hospitals NHS Trust,31/12/2022,Mobile Phones,PFI DESIGN + CONSTRUCTION,VODAFONE LTD,44989115,42.00,
Department of Health,St. Helens&Knowsley Hospitals NHS Trust,31/12/2022,Mobile Phones,PFI DESIGN + CONSTRUCTION,VODAFONE LTD,44989115,210.00,
Department of Health,St. Helens&Knowsley Hospitals NHS Trust,31/12/2022,Mobile Phones,PFI ENABLING WORKS,VODAFONE LTD,44989115,10.94,
Department of Health,St. Helens&Knowsley Hospitals NHS Trust,31/12/2022,Mobile Phones,PFI ENABLING WORKS,VODAFONE LTD,44989115,54.68,
Department of Health,St. Helens&Knowsley Hospitals NHS Trust,31/12/2022,Mobile Phones,PHARMACY GENERAL,VODAFONE LTD,44989115,125.02,
Department of Health,St. Helens&Knowsley Hospitals NHS Trust,31/12/2022,Mobile Phones,PHARMACY GENERAL,VODAFONE LTD,44989115,625.08,
Department of Health,St. Helens&Knowsley Hospitals NHS Trust,31/12/2022,Mobile Phones,PROJECTS And TRAINING,VODAFONE LTD,44989115,49.50,
Department of Health,St. Helens&Knowsley Hospitals NHS Trust,31/12/2022,Mobile Phones,PROJECTS And TRAINING,VODAFONE LTD,44989115,247.50,
Department of Health,St. Helens&Knowsley Hospitals NHS Trust,31/12/2022,Mobile Phones,RADIOGRAPHY WHISTON,VODAFONE LTD,44989115,12.02,
Department of Health,St. Helens&Knowsley Hospitals NHS Trust,31/12/2022,Mobile Phones,RADIOGRAPHY WHISTON,VODAFONE LTD,44989115,60.12,
Department of Health,St. Helens&Knowsley Hospitals NHS Trust,31/12/2022,Mobile Phones,RADIOLOGY MEDICAL STAFF,VODAFONE LTD,44989115,6.00,
Department of Health,St. Helens&Knowsley Hospitals NHS Trust,31/12/2022,Mobile Phones,RADIOLOGY MEDICAL STAFF,VODAFONE LTD,44989115,30.00,
Department of Health,St. Helens&Knowsley Hospitals NHS Trust,31/12/2022,Mobile Phones,RD AND I,VODAFONE LTD,44989115,25.74,
Department of Health,St. Helens&Knowsley Hospitals NHS Trust,31/12/2022,Mobile Phones,RD AND I,VODAFONE LTD,44989115,128.70,
Department of Health,St. Helens&Knowsley Hospitals NHS Trust,31/12/2022,Mobile Phones,REABLEMENT TEAM,VODAFONE LTD,44989115,22.50,
Department of Health,St. Helens&Knowsley Hospitals NHS Trust,31/12/2022,Mobile Phones,REABLEMENT TEAM,VODAFONE LTD,44989115,112.50,
Department of Health,St. Helens&Knowsley Hospitals NHS Trust,31/12/2022,Mobile Phones,REGIONAL CANCER TRANSFORMATION,VODAFONE LTD,44989115,25.60,
Department of Health,St. Helens&Knowsley Hospitals NHS Trust,31/12/2022,Mobile Phones,REGIONAL CANCER TRANSFORMATION,VODAFONE LTD,44989115,128.01,
Department of Health,St. Helens&Knowsley Hospitals NHS Trust,31/12/2022,Mobile Phones,REGIONAL VACCINATION CENTRE,VODAFONE LTD,44989115,39.60,
Department of Health,St. Helens&Knowsley Hospitals NHS Trust,31/12/2022,Mobile Phones,REGIONAL VACCINATION CENTRE,VODAFONE LTD,44989115,198.00,
Department of Health,St. Helens&Knowsley Hospitals NHS Trust,31/12/2022,Mobile Phones,RESPIRATORY NURSING,VODAFONE LTD,44989115,36.00,
Department of Health,St. Helens&Knowsley Hospitals NHS Trust,31/12/2022,Mobile Phones,RESPIRATORY NURSING,VODAFONE LTD,44989115,180.00,
Department of Health,St. Helens&Knowsley Hospitals NHS Trust,31/12/2022,Mobile Phones,RESPIRATORY SNR MEDICAL,VODAFONE LTD,44989115,66.00,
Department of Health,St. Helens&Knowsley Hospitals NHS Trust,31/12/2022,Mobile Phones,RESPIRATORY SNR MEDICAL,VODAFONE LTD,44989115,330.00,
Department of Health,St. Helens&Knowsley Hospitals NHS Trust,31/12/2022,Mobile Phones,RESUSCITATION TRAINING,VODAFONE LTD,44989115,6.06,
Department of Health,St. Helens&Knowsley Hospitals NHS Trust,31/12/2022,Mobile Phones,RESUSCITATION TRAINING,VODAFONE LTD,44989115,30.30,
Department of Health,St. Helens&Knowsley Hospitals NHS Trust,31/12/2022,Mobile Phones,SAFEGUARDING,VODAFONE LTD,44989115,13.50,
Department of Health,St. Helens&Knowsley Hospitals NHS Trust,31/12/2022,Mobile Phones,SAFEGUARDING,VODAFONE LTD,44989115,67.50,
Department of Health,St. Helens&Knowsley Hospitals NHS Trust,31/12/2022,Mobile Phones,SANDERSON SUITE GENERAL SURGERY,VODAFONE LTD,44989115,12.00,
Department of Health,St. Helens&Knowsley Hospitals NHS Trust,31/12/2022,Mobile Phones,SANDERSON SUITE GENERAL SURGERY,VODAFONE LTD,44989115,60.00,
Department of Health,St. Helens&Knowsley Hospitals NHS Trust,31/12/2022,Mobile Phones,SECURITY SERVICES,VODAFONE LTD,44989115,42.00,
Department of Health,St. Helens&Knowsley Hospitals NHS Trust,31/12/2022,Mobile Phones,SECURITY SERVICES,VODAFONE LTD,44989115,210.00,
Department of Health,St. Helens&Knowsley Hospitals NHS Trust,31/12/2022,Mobile Phones,SEDDON SUITE TRAUMA REHAB UNIT,VODAFONE LTD,44989115,7.50,
Department of Health,St. Helens&Knowsley Hospitals NHS Trust,31/12/2022,Mobile Phones,SEDDON SUITE TRAUMA REHAB UNIT,VODAFONE LTD,44989115,37.50,
Department of Health,St. Helens&Knowsley Hospitals NHS Trust,31/12/2022,Mobile Phones,SEPSIS,VODAFONE LTD,44989115,6.00,
Department of Health,St. Helens&Knowsley Hospitals NHS Trust,31/12/2022,Mobile Phones,SEPSIS,VODAFONE LTD,44989115,30.00,
Department of Health,St. Helens&Knowsley Hospitals NHS Trust,31/12/2022,Mobile Phones,SERV INCR 4 TEACHING-SIFT,VODAFONE LTD,44989115,43.60,
Department of Health,St. Helens&Knowsley Hospitals NHS Trust,31/12/2022,Mobile Phones,SERV INCR 4 TEACHING-SIFT,VODAFONE LTD,44989115,218.00,
Department of Health,St. Helens&Knowsley Hospitals NHS Trust,31/12/2022,Mobile Phones,SERVICE DELIVERY INFRASTRUCTURE,VODAFONE LTD,44989115,30.00,
Department of Health,St. Helens&Knowsley Hospitals NHS Trust,31/12/2022,Mobile Phones,SERVICE DELIVERY INFRASTRUCTURE,VODAFONE LTD,44989115,150.00,
Department of Health,St. Helens&Knowsley Hospitals NHS Trust,31/12/2022,Mobile Phones,SERVICE DELIVERY OPERATIONS,VODAFONE LTD,44989115,6.00,
Department of Health,St. Helens&Knowsley Hospitals NHS Trust,31/12/2022,Mobile Phones,SERVICE DELIVERY OPERATIONS,VODAFONE LTD,44989115,30.00,
Department of Health,St. Helens&Knowsley Hospitals NHS Trust,31/12/2022,Mobile Phones,SEXUAL HEALTH,VODAFONE LTD,44989115,153.27,
Department of Health,St. Helens&Knowsley Hospitals NHS Trust,31/12/2022,Mobile Phones,SEXUAL HEALTH,VODAFONE LTD,44989115,766.36,
Department of Health,St. Helens&Knowsley Hospitals NHS Trust,31/12/2022,Mobile Phones,SHARED CARE RECORD - ST HELENS HEALTH ECONOMY,VODAFONE LTD,44989115,18.00,
Department of Health,St. Helens&Knowsley Hospitals NHS Trust,31/12/2022,Mobile Phones,SHARED CARE RECORD - ST HELENS HEALTH ECONOMY,VODAFONE LTD,44989115,90.00,
Department of Health,St. Helens&Knowsley Hospitals NHS Trust,31/12/2022,Mobile Phones,SOHT BLOOD SCIENCES,VODAFONE LTD,44989115,1.50,
Department of Health,St. Helens&Knowsley Hospitals NHS Trust,31/12/2022,Mobile Phones,SOHT BLOOD SCIENCES,VODAFONE LTD,44989115,7.50,
Department of Health,St. Helens&Knowsley Hospitals NHS Trust,31/12/2022,Mobile Phones,SOHT PHLEBOTOMY,VODAFONE LTD,44989115,42.17,
Department of Health,St. Helens&Knowsley Hospitals NHS Trust,31/12/2022,Mobile Phones,SOHT PHLEBOTOMY,VODAFONE LTD,44989115,210.85,
Department of Health,St. Helens&Knowsley Hospitals NHS Trust,31/12/2022,Mobile Phones,ST HELENS COMMUNITY PHLEBOTOMY,VODAFONE LTD,44989115,22.80,
Department of Health,St. Helens&Knowsley Hospitals NHS Trust,31/12/2022,Mobile Phones,ST HELENS COMMUNITY PHLEBOTOMY,VODAFONE LTD,44989115,114.00,
Department of Health,St. Helens&Knowsley Hospitals NHS Trust,31/12/2022,Mobile Phones,ST HELENS CONTACT CARE IC THERAPY TEAM,VODAFONE LTD,44989115,82.91,
Department of Health,St. Helens&Knowsley Hospitals NHS Trust,31/12/2022,Mobile Phones,ST HELENS CONTACT CARE IC THERAPY TEAM,VODAFONE LTD,44989115,414.54,
Department of Health,St. Helens&Knowsley Hospitals NHS Trust,31/12/2022,Mobile Phones,ST HELENS CONTACT CARES REABLEMENT TEAM,VODAFONE LTD,44989115,38.93,
Department of Health,St. Helens&Knowsley Hospitals NHS Trust,31/12/2022,Mobile Phones,ST HELENS CONTACT CARES REABLEMENT TEAM,VODAFONE LTD,44989115,194.66,
Department of Health,St. Helens&Knowsley Hospitals NHS Trust,31/12/2022,Mobile Phones,ST HELENS UTC,VODAFONE LTD,44989115,12.00,
Department of Health,St. Helens&Knowsley Hospitals NHS Trust,31/12/2022,Mobile Phones,ST HELENS UTC,VODAFONE LTD,44989115,60.00,
Department of Health,St. Helens&Knowsley Hospitals NHS Trust,31/12/2022,Mobile Phones,STROKE/REHAB NURSING,VODAFONE LTD,44989115,7.53,
Department of Health,St. Helens&Knowsley Hospitals NHS Trust,31/12/2022,Mobile Phones,STROKE/REHAB NURSING,VODAFONE LTD,44989115,37.67,
Department of Health,St. Helens&Knowsley Hospitals NHS Trust,31/12/2022,Mobile Phones,SURGICAL CARE MANAGEMENT,VODAFONE LTD,44989115,152.78,
Department of Health,St. Helens&Knowsley Hospitals NHS Trust,31/12/2022,Mobile Phones,SURGICAL CARE MANAGEMENT,VODAFONE LTD,44989115,763.88,
Department of Health,St. Helens&Knowsley Hospitals NHS Trust,31/12/2022,Mobile Phones,SURGICAL CARE SECS,VODAFONE LTD,44989115,6.00,
Department of Health,St. Helens&Knowsley Hospitals NHS Trust,31/12/2022,Mobile Phones,SURGICAL CARE SECS,VODAFONE LTD,44989115,30.00,
Department of Health,St. Helens&Knowsley Hospitals NHS Trust,31/12/2022,Mobile Phones,THEATRES ANAESTHETICS WH,VODAFONE LTD,44989115,20.63,
Department of Health,St. Helens&Knowsley Hospitals NHS Trust,31/12/2022,Mobile Phones,THEATRES ANAESTHETICS WH,VODAFONE LTD,44989115,103.14,
Department of Health,St. Helens&Knowsley Hospitals NHS Trust,31/12/2022,Mobile Phones,THEATRES BURNS + PLASTICS,VODAFONE LTD,44989115,7.50,
Department of Health,St. Helens&Knowsley Hospitals NHS Trust,31/12/2022,Mobile Phones,THEATRES BURNS + PLASTICS,VODAFONE LTD,44989115,37.50,
Department of Health,St. Helens&Knowsley Hospitals NHS Trust,31/12/2022,Mobile Phones,THEATRES DIRECTORATE MGT,VODAFONE LTD,44989115,85.65,
Department of Health,St. Helens&Knowsley Hospitals NHS Trust,31/12/2022,Mobile Phones,THEATRES DIRECTORATE MGT,VODAFONE LTD,44989115,428.25,
Department of Health,St. Helens&Knowsley Hospitals NHS Trust,31/12/2022,Mobile Phones,THEATRES ENT WHISTON,VODAFONE LTD,44989115,6.61,
Department of Health,St. Helens&Knowsley Hospitals NHS Trust,31/12/2022,Mobile Phones,THEATRES ENT WHISTON,VODAFONE LTD,44989115,33.05,
Department of Health,St. Helens&Knowsley Hospitals NHS Trust,31/12/2022,Mobile Phones,THEATRES GEN SURGERY/UROL,VODAFONE LTD,44989115,3.00,
Department of Health,St. Helens&Knowsley Hospitals NHS Trust,31/12/2022,Mobile Phones,THEATRES GEN SURGERY/UROL,VODAFONE LTD,44989115,15.00,
Department of Health,St. Helens&Knowsley Hospitals NHS Trust,31/12/2022,Mobile Phones,THEATRES MAIN ST HELEN'S,VODAFONE LTD,44989115,11.55,
Department of Health,St. Helens&Knowsley Hospitals NHS Trust,31/12/2022,Mobile Phones,THEATRES MAIN ST HELEN'S,VODAFONE LTD,44989115,57.75,
Department of Health,St. Helens&Knowsley Hospitals NHS Trust,31/12/2022,Mobile Phones,THEATRES MATERNITY WH,VODAFONE LTD,44989115,9.00,
Department of Health,St. Helens&Knowsley Hospitals NHS Trust,31/12/2022,Mobile Phones,THEATRES MATERNITY WH,VODAFONE LTD,44989115,45.00,
Department of Health,St. Helens&Knowsley Hospitals NHS Trust,31/12/2022,Mobile Phones,THEATRES MEDICAL STAFF,VODAFONE LTD,44989115,6.00,
Department of Health,St. Helens&Knowsley Hospitals NHS Trust,31/12/2022,Mobile Phones,THEATRES MEDICAL STAFF,VODAFONE LTD,44989115,30.00,
Department of Health,St. Helens&Knowsley Hospitals NHS Trust,31/12/2022,Mobile Phones,THEATRES TRAU ORTHOPAEDIC,VODAFONE LTD,44989115,1.50,
Department of Health,St. Helens&Knowsley Hospitals NHS Trust,31/12/2022,Mobile Phones,THEATRES TRAU ORTHOPAEDIC,VODAFONE LTD,44989115,7.50,
Department of Health,St. Helens&Knowsley Hospitals NHS Trust,31/12/2022,Mobile Phones,THERAPY - ACUTE MEDICINE,VODAFONE LTD,44989115,6.00,
Department of Health,St. Helens&Knowsley Hospitals NHS Trust,31/12/2022,Mobile Phones,THERAPY - ACUTE MEDICINE,VODAFONE LTD,44989115,30.00,
Department of Health,St. Helens&Knowsley Hospitals NHS Trust,31/12/2022,Mobile Phones,THERAPY - AHP FACULTY PROJECT,VODAFONE LTD,44989115,6.00,
Department of Health,St. Helens&Knowsley Hospitals NHS Trust,31/12/2022,Mobile Phones,THERAPY - AHP FACULTY PROJECT,VODAFONE LTD,44989115,30.00,
Department of Health,St. Helens&Knowsley Hospitals NHS Trust,31/12/2022,Mobile Phones,THERAPY - MEDICINES FOR OLDER PEOPLE,VODAFONE LTD,44989115,1.50,
Department of Health,St. Helens&Knowsley Hospitals NHS Trust,31/12/2022,Mobile Phones,THERAPY - MEDICINES FOR OLDER PEOPLE,VODAFONE LTD,44989115,7.50,
Department of Health,St. Helens&Knowsley Hospitals NHS Trust,31/12/2022,Mobile Phones,THERAPY - SEDDON REHAB UNIT,VODAFONE LTD,44989115,6.00,
Department of Health,St. Helens&Knowsley Hospitals NHS Trust,31/12/2022,Mobile Phones,THERAPY - SEDDON REHAB UNIT,VODAFONE LTD,44989115,30.00,
Department of Health,St. Helens&Knowsley Hospitals NHS Trust,31/12/2022,Mobile Phones,THERAPY MANAGEMENT & ADMIN.,VODAFONE LTD,44989115,118.66,
Department of Health,St. Helens&Knowsley Hospitals NHS Trust,31/12/2022,Mobile Phones,THERAPY MANAGEMENT & ADMIN.,VODAFONE LTD,44989115,593.32,
Department of Health,St. Helens&Knowsley Hospitals NHS Trust,31/12/2022,Mobile Phones,TISSUE VIABILITY,VODAFONE LTD,44989115,9.12,
Department of Health,St. Helens&Knowsley Hospitals NHS Trust,31/12/2022,Mobile Phones,TISSUE VIABILITY,VODAFONE LTD,44989115,45.61,
Department of Health,St. Helens&Knowsley Hospitals NHS Trust,31/12/2022,Mobile Phones,TRANSFER LOUNGE,VODAFONE LTD,44989115,1.50,
Department of Health,St. Helens&Knowsley Hospitals NHS Trust,31/12/2022,Mobile Phones,TRANSFER LOUNGE,VODAFONE LTD,44989115,7.50,
Department of Health,St. Helens&Knowsley Hospitals NHS Trust,31/12/2022,Mobile Phones,TRAUMA ORTHOPAEDICS,VODAFONE LTD,44989115,6.00,
Department of Health,St. Helens&Knowsley Hospitals NHS Trust,31/12/2022,Mobile Phones,TRAUMA ORTHOPAEDICS,VODAFONE LTD,44989115,30.00,
Department of Health,St. Helens&Knowsley Hospitals NHS Trust,31/12/2022,Mobile Phones,TRUST IT SYSTEMS,VODAFONE LTD,44989115,6.00,
Department of Health,St. Helens&Knowsley Hospitals NHS Trust,31/12/2022,Mobile Phones,TRUST IT SYSTEMS,VODAFONE LTD,44989115,30.00,
Department of Health,St. Helens&Knowsley Hospitals NHS Trust,31/12/2022,Mobile Phones,TRUST RECHARGES,VODAFONE LTD,44989115,223.90,
Department of Health,St. Helens&Knowsley Hospitals NHS Trust,31/12/2022,Mobile Phones,TRUST RECHARGES,VODAFONE LTD,44989115,"1,119.50",
Department of Health,St. Helens&Knowsley Hospitals NHS Trust,31/12/2022,Mobile Phones,UROLOGY MEDICAL STAFF,VODAFONE LTD,44989115,30.00,
Department of Health,St. Helens&Knowsley Hospitals NHS Trust,31/12/2022,Mobile Phones,UROLOGY MEDICAL STAFF,VODAFONE LTD,44989115,150.00,
Department of Health,St. Helens&Knowsley Hospitals NHS Trust,31/12/2022,Mobile Phones,UROLOGY SUITE,VODAFONE LTD,44989115,19.50,
Department of Health,St. Helens&Knowsley Hospitals NHS Trust,31/12/2022,Mobile Phones,UROLOGY SUITE,VODAFONE LTD,44989115,97.50,
Department of Health,St. Helens&Knowsley Hospitals NHS Trust,31/12/2022,Mobile Phones,VOLUNTEERS,VODAFONE LTD,44989115,25.57,
Department of Health,St. Helens&Knowsley Hospitals NHS Trust,31/12/2022,Mobile Phones,VOLUNTEERS,VODAFONE LTD,44989115,127.85,
Department of Health,St. Helens&Knowsley Hospitals NHS Trust,31/12/2022,Mobile Phones,WARD 1A MCG,VODAFONE LTD,44989115,6.00,
Department of Health,St. Helens&Knowsley Hospitals NHS Trust,31/12/2022,Mobile Phones,WARD 1A MCG,VODAFONE LTD,44989115,30.00,
Department of Health,St. Helens&Knowsley Hospitals NHS Trust,31/12/2022,Mobile Phones,WARD 1B ACUTE MEDICAL UNIT,VODAFONE LTD,44989115,6.00,
Department of Health,St. Helens&Knowsley Hospitals NHS Trust,31/12/2022,Mobile Phones,WARD 1B ACUTE MEDICAL UNIT,VODAFONE LTD,44989115,30.00,
Department of Health,St. Helens&Knowsley Hospitals NHS Trust,31/12/2022,Mobile Phones,WARD 1C ACUTE MEDICAL UNIT,VODAFONE LTD,44989115,12.00,
Department of Health,St. Helens&Knowsley Hospitals NHS Trust,31/12/2022,Mobile Phones,WARD 1C ACUTE MEDICAL UNIT,VODAFONE LTD,44989115,60.00,
Department of Health,St. Helens&Knowsley Hospitals NHS Trust,31/12/2022,Mobile Phones,WARD 1E CORONARY CARE UNIT,VODAFONE LTD,44989115,6.00,
Department of Health,St. Helens&Knowsley Hospitals NHS Trust,31/12/2022,Mobile Phones,WARD 1E CORONARY CARE UNIT,VODAFONE LTD,44989115,30.00,
Department of Health,St. Helens&Knowsley Hospitals NHS Trust,31/12/2022,Mobile Phones,WARD 2A HAEMATOLOGY,VODAFONE LTD,44989115,27.20,
Department of Health,St. Helens&Knowsley Hospitals NHS Trust,31/12/2022,Mobile Phones,WARD 2A HAEMATOLOGY,VODAFONE LTD,44989115,136.00,
Department of Health,St. Helens&Knowsley Hospitals NHS Trust,31/12/2022,Mobile Phones,WARD 2B RESPIRATORY,VODAFONE LTD,44989115,6.00,
Department of Health,St. Helens&Knowsley Hospitals NHS Trust,31/12/2022,Mobile Phones,WARD 2B RESPIRATORY,VODAFONE LTD,44989115,30.00,
Department of Health,St. Helens&Knowsley Hospitals NHS Trust,31/12/2022,Mobile Phones,WARD 2C RESPIRATORY,VODAFONE LTD,44989115,12.00,
Department of Health,St. Helens&Knowsley Hospitals NHS Trust,31/12/2022,Mobile Phones,WARD 2C RESPIRATORY,VODAFONE LTD,44989115,60.00,
Department of Health,St. Helens&Knowsley Hospitals NHS Trust,31/12/2022,Mobile Phones,WARD 2D GENERAL MEDICINE,VODAFONE LTD,44989115,6.00,
Department of Health,St. Helens&Knowsley Hospitals NHS Trust,31/12/2022,Mobile Phones,WARD 2D GENERAL MEDICINE,VODAFONE LTD,44989115,30.00,
Department of Health,St. Helens&Knowsley Hospitals NHS Trust,31/12/2022,Mobile Phones,WARD 3A PLASTICS,VODAFONE LTD,44989115,32.56,
Department of Health,St. Helens&Knowsley Hospitals NHS Trust,31/12/2022,Mobile Phones,WARD 3A PLASTICS,VODAFONE LTD,44989115,162.80,
Department of Health,St. Helens&Knowsley Hospitals NHS Trust,31/12/2022,Mobile Phones,WARD 3ALPHA ORTHOPAEDICS,VODAFONE LTD,44989115,6.00,
Department of Health,St. Helens&Knowsley Hospitals NHS Trust,31/12/2022,Mobile Phones,WARD 3ALPHA ORTHOPAEDICS,VODAFONE LTD,44989115,30.00,
Department of Health,St. Helens&Knowsley Hospitals NHS Trust,31/12/2022,Mobile Phones,WARD 3B ORTHOPAEDICS,VODAFONE LTD,44989115,6.00,
Department of Health,St. Helens&Knowsley Hospitals NHS Trust,31/12/2022,Mobile Phones,WARD 3B ORTHOPAEDICS,VODAFONE LTD,44989115,30.00,
Department of Health,St. Helens&Knowsley Hospitals NHS Trust,31/12/2022,Mobile Phones,WARD 3C GENERAL MEDICINE,VODAFONE LTD,44989115,18.00,
Department of Health,St. Helens&Knowsley Hospitals NHS Trust,31/12/2022,Mobile Phones,WARD 3C GENERAL MEDICINE,VODAFONE LTD,44989115,90.00,
Department of Health,St. Helens&Knowsley Hospitals NHS Trust,31/12/2022,Mobile Phones,WARD 3D GASTROENTEROLOGY,VODAFONE LTD,44989115,18.00,
Department of Health,St. Helens&Knowsley Hospitals NHS Trust,31/12/2022,Mobile Phones,WARD 3D GASTROENTEROLOGY,VODAFONE LTD,44989115,90.00,
Department of Health,St. Helens&Knowsley Hospitals NHS Trust,31/12/2022,Mobile Phones,WARD 3E GYNAECOLOGY,VODAFONE LTD,44989115,24.00,
Department of Health,St. Helens&Knowsley Hospitals NHS Trust,31/12/2022,Mobile Phones,WARD 3E GYNAECOLOGY,VODAFONE LTD,44989115,120.00,
Department of Health,St. Helens&Knowsley Hospitals NHS Trust,31/12/2022,Mobile Phones,WARD 3F PAEDIATRICS,VODAFONE LTD,44989115,16.51,
Department of Health,St. Helens&Knowsley Hospitals NHS Trust,31/12/2022,Mobile Phones,WARD 3F PAEDIATRICS,VODAFONE LTD,44989115,82.55,
Department of Health,St. Helens&Knowsley Hospitals NHS Trust,31/12/2022,Mobile Phones,WARD 4A GENERAL SURGERY,VODAFONE LTD,44989115,14.84,
Department of Health,St. Helens&Knowsley Hospitals NHS Trust,31/12/2022,Mobile Phones,WARD 4A GENERAL SURGERY,VODAFONE LTD,44989115,74.19,
Department of Health,St. Helens&Knowsley Hospitals NHS Trust,31/12/2022,Mobile Phones,WARD 4B GENERAL SURGERY,VODAFONE LTD,44989115,6.00,
Department of Health,St. Helens&Knowsley Hospitals NHS Trust,31/12/2022,Mobile Phones,WARD 4B GENERAL SURGERY,VODAFONE LTD,44989115,30.00,
Department of Health,St. Helens&Knowsley Hospitals NHS Trust,31/12/2022,Mobile Phones,WARD 4C GENERAL SURGERY,VODAFONE LTD,44989115,6.00,
Department of Health,St. Helens&Knowsley Hospitals NHS Trust,31/12/2022,Mobile Phones,WARD 4C GENERAL SURGERY,VODAFONE LTD,44989115,30.00,
Department of Health,St. Helens&Knowsley Hospitals NHS Trust,31/12/2022,Mobile Phones,WARD 4D BURNS,VODAFONE LTD,44989115,16.80,
Department of Health,St. Helens&Knowsley Hospitals NHS Trust,31/12/2022,Mobile Phones,WARD 4D BURNS,VODAFONE LTD,44989115,84.00,
Department of Health,St. Helens&Knowsley Hospitals NHS Trust,31/12/2022,Mobile Phones,WARD 5A CARE OF THE ELDERLY,VODAFONE LTD,44989115,48.00,
Department of Health,St. Helens&Knowsley Hospitals NHS Trust,31/12/2022,Mobile Phones,WARD 5A CARE OF THE ELDERLY,VODAFONE LTD,44989115,240.00,
Department of Health,St. Helens&Knowsley Hospitals NHS Trust,31/12/2022,Mobile Phones,WARD 5B CARE OF THE ELDERLY,VODAFONE LTD,44989115,6.00,
Department of Health,St. Helens&Knowsley Hospitals NHS Trust,31/12/2022,Mobile Phones,WARD 5B CARE OF THE ELDERLY,VODAFONE LTD,44989115,30.00,
Department of Health,St. Helens&Knowsley Hospitals NHS Trust,31/12/2022,Mobile Phones,WARD 5C ACUTE STROKE UNIT (HASU),VODAFONE LTD,44989115,31.52,
Department of Health,St. Helens&Knowsley Hospitals NHS Trust,31/12/2022,Mobile Phones,WARD 5C ACUTE STROKE UNIT (HASU),VODAFONE LTD,44989115,157.62,
Department of Health,St. Helens&Knowsley Hospitals NHS Trust,31/12/2022,Mobile Phones,WARD 5D ASU,VODAFONE LTD,44989115,6.00,
Department of Health,St. Helens&Knowsley Hospitals NHS Trust,31/12/2022,Mobile Phones,WARD 5D ASU,VODAFONE LTD,44989115,30.00,
Department of Health,St. Helens&Knowsley Hospitals NHS Trust,31/12/2022,Mobile Phones,WHIS THEATRES ANCIL & EMERG SUP STAFF,VODAFONE LTD,44989115,56.45,
Department of Health,St. Helens&Knowsley Hospitals NHS Trust,31/12/2022,Mobile Phones,WHIS THEATRES ANCIL & EMERG SUP STAFF,VODAFONE LTD,44989115,282.26,
Department of Health,St. Helens&Knowsley Hospitals NHS Trust,31/12/2022,Mobile Phones,WHIS THEATRES EMERG WKDAY NGTS WKEND,VODAFONE LTD,44989115,6.00,
Department of Health,St. Helens&Knowsley Hospitals NHS Trust,31/12/2022,Mobile Phones,WHIS THEATRES EMERG WKDAY NGTS WKEND,VODAFONE LTD,44989115,30.00,
Department of Health,St. Helens&Knowsley Hospitals NHS Trust,31/12/2022,Mobile Phones,WHISTON EQUIPMENT POOL,VODAFONE LTD,44989115,12.00,
Department of Health,St. Helens&Knowsley Hospitals NHS Trust,31/12/2022,Mobile Phones,WHISTON EQUIPMENT POOL,VODAFONE LTD,44989115,60.00,
Department of Health,St. Helens&Knowsley Hospitals NHS Trust,31/12/2022,Mobile Phones,WOMENS OPD,VODAFONE LTD,44989115,6.00,
Department of Health,St. Helens&Knowsley Hospitals NHS Trust,31/12/2022,Mobile Phones,WOMENS OPD,VODAFONE LTD,44989115,30.00,
Department of Health,St. Helens&Knowsley Hospitals NHS Trust,31/12/2022,Mobile Phones,WORKFORCE INTELLIGENCE,VODAFONE LTD,44989115,18.00,
Department of Health,St. Helens&Knowsley Hospitals NHS Trust,31/12/2022,Mobile Phones,WORKFORCE INTELLIGENCE,VODAFONE LTD,44989115,90.00,
Department of Health,St. Helens&Knowsley Hospitals NHS Trust,31/12/2022,NonNHS Trade Pybls Curr,Balance Sheet,SUPPLY CHAIN COORDINATION LIMITED,44817642,"202,662.95",
Department of Health,St. Helens&Knowsley Hospitals NHS Trust,31/12/2022,NonNHS Trade Pybls Curr,Balance Sheet,SUPPLY CHAIN COORDINATION LIMITED,44989427,"207,201.19",
Department of Health,St. Helens&Knowsley Hospitals NHS Trust,31/12/2022,NonNHS Trade Pybls Curr,Balance Sheet,SUPPLY CHAIN COORDINATION LIMITED,45021179,"282,231.36",
Department of Health,St. Helens&Knowsley Hospitals NHS Trust,31/12/2022,Other recvables - Current,Balance Sheet,VODAFONE LTD,44989115,6.00,
Department of Health,St. Helens&Knowsley Hospitals NHS Trust,31/12/2022,Other recvables - Current,Balance Sheet,VODAFONE LTD,44989115,30.00,
Department of Health,St. Helens&Knowsley Hospitals NHS Trust,31/12/2022,Postage & Carriage,HOTEL SERVICES MGT ST H,PITNEY BOWES LTD,44829746,"44,367.61",
Department of Health,St. Helens&Knowsley Hospitals NHS Trust,31/12/2022,Postage & Carriage,HOTEL SERVICES MGT WHIST,PITNEY BOWES LTD,44829813,"38,178.76",
Department of Health,St. Helens&Knowsley Hospitals NHS Trust,31/12/2022,Rent,COMMUNITY RENT,COMMUNITY HEALTH PARTNERSHIPS LTD,44829769,"31,606.19",
Department of Health,St. Helens&Knowsley Hospitals NHS Trust,31/12/2022,Rent,COMMUNITY RENT,COMMUNITY HEALTH PARTNERSHIPS LTD,44829770,"26,316.70",
Department of Health,St. Helens&Knowsley Hospitals NHS Trust,31/12/2022,Rent,COMMUNITY RENT,ST HELENS COLLEGE,44885684,"27,720.43",
Department of Health,St. Helens&Knowsley Hospitals NHS Trust,31/12/2022,Rent,COMMUNITY RENT,COMMUNITY HEALTH PARTNERSHIPS LTD,44887207,"31,606.19",
Department of Health,St. Helens&Knowsley Hospitals NHS Trust,31/12/2022,Rent,COMMUNITY RENT,COMMUNITY HEALTH PARTNERSHIPS LTD,44887217,"26,316.70",
Department of Health,St. Helens&Knowsley Hospitals NHS Trust,31/12/2022,Rent,COMMUNITY RENT,COMMUNITY HEALTH PARTNERSHIPS LTD,44989137,"136,967.52",
Department of Health,St. Helens&Knowsley Hospitals NHS Trust,31/12/2022,Rent,COMMUNITY RENT,COMMUNITY HEALTH PARTNERSHIPS LTD,44989205,"136,967.52",
Department of Health,St. Helens&Knowsley Hospitals NHS Trust,31/12/2022,Stationery,A + E NURSING WHISTON,COMPUTER BUSINESS FORMS LTD,44955339,"26,180.00",
Department of Health,St. Helens&Knowsley Hospitals NHS Trust,31/12/2022,Stationery,A + E NURSING WHISTON,COMPUTER BUSINESS FORMS LTD,44955339,100.00,
Department of Health,St. Helens&Knowsley Hospitals NHS Trust,31/12/2022,Stocks Raw Materials,Balance Sheet,AMGEN LTD,44775207,"1,180.22",
Department of Health,St. Helens&Knowsley Hospitals NHS Trust,31/12/2022,Stocks Raw Materials,Balance Sheet,AMGEN LTD,44775207,380.56,
Department of Health,St. Helens&Knowsley Hospitals NHS Trust,31/12/2022,Stocks Raw Materials,Balance Sheet,AMGEN LTD,44775207,"56,430.00",
Department of Health,St. Helens&Knowsley Hospitals NHS Trust,31/12/2022,Stocks Raw Materials,Balance Sheet,NOVARTIS PHARMACEUTICALS UK LTD,44775325,"31,651.20",
Department of Health,St. Helens&Knowsley Hospitals NHS Trust,31/12/2022,Stocks Raw Materials,Balance Sheet,NOVARTIS PHARMACEUTICALS UK LTD,44775325,"4,121.42",
Department of Health,St. Helens&Knowsley Hospitals NHS Trust,31/12/2022,Stocks Raw Materials,Balance Sheet,NOVARTIS PHARMACEUTICALS UK LTD,44775325,198.40,
Department of Health,St. Helens&Knowsley Hospitals NHS Trust,31/12/2022,Stocks Raw Materials,Balance Sheet,AMGEN LTD,44775491,"1,098.00",
Department of Health,St. Helens&Knowsley Hospitals NHS Trust,31/12/2022,Stocks Raw Materials,Balance Sheet,AMGEN LTD,44775491,"35,145.00",
Department of Health,St. Helens&Knowsley Hospitals NHS Trust,31/12/2022,Stocks Raw Materials,Balance Sheet,NOVARTIS PHARMACEUTICALS UK LTD,44775529,"35,343.84",
Department of Health,St. Helens&Knowsley Hospitals NHS Trust,31/12/2022,Stocks Raw Materials,Balance Sheet,NOVARTIS PHARMACEUTICALS UK LTD,44775529,"4,989.60",
Department of Health,St. Helens&Knowsley Hospitals NHS Trust,31/12/2022,Stocks Raw Materials,Balance Sheet,NOVARTIS PHARMACEUTICALS UK LTD,44775529,44.26,
Department of Health,St. Helens&Knowsley Hospitals NHS Trust,31/12/2022,Stocks Raw Materials,Balance Sheet,NOVARTIS PHARMACEUTICALS UK LTD,44775529,"7,862.40",
Department of Health,St. Helens&Knowsley Hospitals NHS Trust,31/12/2022,Stocks Raw Materials,Balance Sheet,JANSSEN CILAG LTD,44861623,"35,769.60",
Department of Health,St. Helens&Knowsley Hospitals NHS Trust,31/12/2022,Stocks Raw Materials,Balance Sheet,AAH PHARMACEUTICALS LTD,44956109,"47,285.12",
Department of Health,St. Helens&Knowsley Hospitals NHS Trust,31/12/2022,Stocks Raw Materials,Balance Sheet,ALLIANCE HEALTHCARE DISTRIBUTION LTD,44956110,"9,423.90",
Department of Health,St. Helens&Knowsley Hospitals NHS Trust,31/12/2022,Stocks Raw Materials,Balance Sheet,ALLIANCE HEALTHCARE DISTRIBUTION LTD,44956110,"41,335.65",
Department of Health,St. Helens&Knowsley Hospitals NHS Trust,31/12/2022,Stocks Raw Materials,Balance Sheet,PHOENIX HEALTHCARE DISTRIBUTION LTD,44956112,"28,203.03",
Department of Health,St. Helens&Knowsley Hospitals NHS Trust,31/12/2022,Stocks Raw Materials,Balance Sheet,PHOENIX HEALTHCARE DISTRIBUTION LTD,44956113,"28,329.54",
Department of Health,St. Helens&Knowsley Hospitals NHS Trust,31/12/2022,Stocks Raw Materials,Balance Sheet,AAH PHARMACEUTICALS LTD,44956114,"9,847.90",
Department of Health,St. Helens&Knowsley Hospitals NHS Trust,31/12/2022,Stocks Raw Materials,Balance Sheet,AAH PHARMACEUTICALS LTD,44956114,"46,178.00",
Department of Health,St. Helens&Knowsley Hospitals NHS Trust,31/12/2022,Stocks Raw Materials,Balance Sheet,ALLIANCE HEALTHCARE DISTRIBUTION LTD,44956115,"53,715.46",
Department of Health,St. Helens&Knowsley Hospitals NHS Trust,31/12/2022,Stocks Raw Materials,Balance Sheet,SCIENSUS PHARMA SERVICES LTD,44956116,"85,559.56",
Department of Health,St. Helens&Knowsley Hospitals NHS Trust,31/12/2022,Stocks Raw Materials,Balance Sheet,ALLOGA UK LTD,44956117,"44,102.85",
Department of Health,St. Helens&Knowsley Hospitals NHS Trust,31/12/2022,Stocks Raw Materials,Balance Sheet,ALLIANCE HEALTHCARE DISTRIBUTION LTD,44956118,"11,269.77",
Department of Health,St. Helens&Knowsley Hospitals NHS Trust,31/12/2022,Stocks Raw Materials,Balance Sheet,ALLIANCE HEALTHCARE DISTRIBUTION LTD,44956118,"44,746.55",
Department of Health,St. Helens&Knowsley Hospitals NHS Trust,31/12/2022,Stocks Raw Materials,Balance Sheet,SCIENSUS PHARMA SERVICES LTD,44956119,"84,484.41",
Department of Health,St. Helens&Knowsley Hospitals NHS Trust,31/12/2022,Stocks Raw Materials,Balance Sheet,AAH PHARMACEUTICALS LTD,44956120,"59,007.78",
Department of Health,St. Helens&Knowsley Hospitals NHS Trust,31/12/2022,Stocks Raw Materials,Balance Sheet,PHOENIX HEALTHCARE DISTRIBUTION LTD,44956121,"46,239.41",
Department of Health,St. Helens&Knowsley Hospitals NHS Trust,31/12/2022,Stocks Raw Materials,Balance Sheet,PHOENIX HEALTHCARE DISTRIBUTION LTD,44956125,"7,543.53",
Department of Health,St. Helens&Knowsley Hospitals NHS Trust,31/12/2022,Stocks Raw Materials,Balance Sheet,PHOENIX HEALTHCARE DISTRIBUTION LTD,44956125,"37,008.79",
Department of Health,St. Helens&Knowsley Hospitals NHS Trust,31/12/2022,Stocks Raw Materials,Balance Sheet,ALLOGA UK LTD,44956126,"18,344.96",
Department of Health,St. Helens&Knowsley Hospitals NHS Trust,31/12/2022,Stocks Raw Materials,Balance Sheet,ALLOGA UK LTD,44956126,"24,374.91",
Department of Health,St. Helens&Knowsley Hospitals NHS Trust,31/12/2022,Stocks Raw Materials,Balance Sheet,NOVARTIS PHARMACEUTICALS UK LTD,44958802,"24,265.92",
Department of Health,St. Helens&Knowsley Hospitals NHS Trust,31/12/2022,Stocks Raw Materials,Balance Sheet,NOVARTIS PHARMACEUTICALS UK LTD,44958802,"2,409.00",
Department of Health,St. Helens&Knowsley Hospitals NHS Trust,31/12/2022,Stocks Raw Materials,Balance Sheet,NOVARTIS PHARMACEUTICALS UK LTD,44958802,"7,484.40",
Department of Health,St. Helens&Knowsley Hospitals NHS Trust,31/12/2022,Stocks Raw Materials,Balance Sheet,NOVARTIS PHARMACEUTICALS UK LTD,44958802,148.32,
Department of Health,St. Helens&Knowsley Hospitals NHS Trust,31/12/2022,Stocks Raw Materials,Balance Sheet,NOVARTIS PHARMACEUTICALS UK LTD,44958802,"6,462.65",
Department of Health,St. Helens&Knowsley Hospitals NHS Trust,31/12/2022,Stocks Raw Materials,Balance Sheet,NOVARTIS PHARMACEUTICALS UK LTD,44958802,22.46,
Department of Health,St. Helens&Knowsley Hospitals NHS Trust,31/12/2022,Stocks Raw Materials,Balance Sheet,NOVARTIS PHARMACEUTICALS UK LTD,44958802,28.98,
Department of Health,St. Helens&Knowsley Hospitals NHS Trust,31/12/2022,Stocks Raw Materials,Balance Sheet,NOVARTIS PHARMACEUTICALS UK LTD,44958802,6.73,
Department of Health,St. Helens&Knowsley Hospitals NHS Trust,31/12/2022,Stocks Raw Materials,Balance Sheet,ALLOGA UK LTD,44989579,"129,609.03",
Department of Health,St. Helens&Knowsley Hospitals NHS Trust,31/12/2022,Stocks Raw Materials,Balance Sheet,BAYER PLC,45060520,"26,005.00",
Department of Health,St. Helens&Knowsley Hospitals NHS Trust,31/12/2022,Stocks Raw Materials,Balance Sheet,NOVARTIS PHARMACEUTICALS UK LTD,45060573,"21,100.80",
Department of Health,St. Helens&Knowsley Hospitals NHS Trust,31/12/2022,Stocks Raw Materials,Balance Sheet,NOVARTIS PHARMACEUTICALS UK LTD,45060573,49.44,
Department of Health,St. Helens&Knowsley Hospitals NHS Trust,31/12/2022,Stocks Raw Materials,Balance Sheet,NOVARTIS PHARMACEUTICALS UK LTD,45060573,55.32,
Department of Health,St. Helens&Knowsley Hospitals NHS Trust,31/12/2022,Stocks Raw Materials,Balance Sheet,NOVARTIS PHARMACEUTICALS UK LTD,45060573,"5,241.60",
Department of Health,St. Helens&Knowsley Hospitals NHS Trust,31/12/2022,Training Materials,POST GRAD MEDICAL CENTRE,GAUMARD SCIENTIFIC CO INC,44875955,970.28,
Department of Health,St. Helens&Knowsley Hospitals NHS Trust,31/12/2022,Training Materials,POST GRAD MEDICAL CENTRE,GAUMARD SCIENTIFIC CO INC,44875955,"29,850.02",
Department of Health,St. Helens&Knowsley Hospitals NHS Trust,31/12/2022,Travel & Subsistence,INTERNATIONAL RECRUITMENT,NHS PROFESSIONALS LTD,45021047,"31,338.27",
Department of Health,St. Helens&Knowsley Hospitals NHS Trust,31/12/2022,Travel & Subsistence,INTERNATIONAL RECRUITMENT,NHS PROFESSIONALS LTD,45090590,"55,440.00",
Department of Health,St. Helens&Knowsley Hospitals NHS Trust,31/12/2022,Travel & Subsistence,INTERNATIONAL RECRUITMENT,NHS PROFESSIONALS LTD,45090602,"75,600.00",
Department of Health,St. Helens&Knowsley Hospitals NHS Trust,31/12/2022,Water,RATES/WATER WHISTON,WATER PLUS LTD,44829754,"33,816.32",
